Workbook

Sheet Title
B2: Title Page
C9: Province of Newfoundland & Labrador
C10: Full Cost Accounting Assessment Tool
C11: To Achieve Complete Cost Recovery of Drinking Water
C12: Supply System Operation & Maintenance,
C13: Capital Upgrade Projects and Infrastructure Replacement
C15: Community:
C16: Geographic Region:
C21: Date: | I21: Month | L21: Day | O21: Year:
C23: Note: Each geographic region is associated with a cost multiplier to represent adjustment of predicted O&M and capital costs by geographic region across the province. The multiplier is displayed next to the geographic region in the dropdown menu.

Sheet ii) Table of Contents
B2: Table of Contents
C3: Page # | E3: Title | O3: Tab Details
C5: i | E5: Title Page | O5: Title Slide
C6: ii | E6: Table of Contents | O6: Information
C7: iii | E7: Description of Cost Accounting Tool | O7: Information
C8: iv | E8: Instructions | O8: Information
C9: v | E9: Assumptions | O9: Information
C10: vi | E10: Start | O10: Information
C11: 1.1 | E11: Community Data | O11: Data Entry
C12: 1.2 | E12: Existing System | O12: Data Entry
C13: 1.3 | E13: Existing Expenditures | O13: Data Entry
C14: 1.4 | E14: Existing Revenue | O14: Data Entry
C15: 1.5 | E15: Part 1 Results - Full Cost Accounting | O15: Results
C16: 2.1 | E16: Part 2 - Start | O16: Information
C17: 2.2 | E17: Design Parameters for Upgrades | O17: Data Entry
C18: 2.3 | E18: Description of Proposed Treatment System | O18: Data Entry
C19: 2.4 | E19: Description of Pumping System Upgrades | O19: Data Entry
C20: 2.5 | E20: Description of Distribution System Upgrades | O20: Data Entry
C21: 2.6 | E21: Cost Curve Predictions | O21: Data Entry
C22: 2.7 | E22: Part 2 Results - Financing and Water Taxes | O22: Results
C23: 3.1 | E23: Infrastructure Replacement Cost
J28: ii

Sheet iii) Description
B2: Description of Full Cost Accounting Assessment Tool
D5: The purpose of the Full Cost Accounting Assessment Tool is to help owners of public drinking water systems in the Province of Newfoundland and Labrador to predict the costs of operating their systems to establish water taxes that will adequately fund proper operation. The second part of the Full Cost Accounting Assessment Tool is for communities that are considering upgrades to their treatment system. The third part factors in the annualized cost of existing infrastructure replacement. The Full Cost Accounting Assessment Tool will generate a water tax based on predicted capital and annual operation and maintenance costs. The sole purpose of the Full Cost Accounting Assessment Tool is to provide information for establishing water taxes. It should not be used to estimate capital budgets. Non-Operating costs such as depreciation and debt servicing, which are typically costs included in full-cost accounting for water systems, have not been included in the calculations. Provincial or Federal sales or services taxes have also not been included. The Full Cost Accounting Assessment Tool is set-up to determine the amount of revenue that is needed to cover the costs of O&M, upgrades and infrastruture replacement for a water system on a break even basis.
J10: iii

Sheet iv) Instructions
B2: Instructions
C5: - | D5: Complete the Full Cost Accounting Assessment Tool by filling out data in each of the pages. The Full Cost Accounting Assessment Tool includes two parts: Part 1 is an analysis of the existing operation and maintenance costs and water taxes, Part 2 is an analysis of future upgrade costs for communities that are considering upgrades to their water treatment system(s).
C6: - | D6: The colour of each tab (bottom of screen) indicates the following: grey tabs introduction section, blue tabs are for Part 1 of the Tool, green tabs are for Part 2 of the Tool, and otange tabs are for Part 3 of the Tool..
C7: - | D7: Buttons have been placed throughout the Full Cost Accounting Assessment Tool to assist with navigation from one tab to the next, as well as to access pages containing additional information.
C8: - | D8: Data entry cells are white with a black outline. This tool also uses drop-down menus and selector options buttons.
C9: - | D9: Where prompted, enter the most recent available information.
C10: - | D10: For communities with more than one water supply system, the Full Cost Accounting Assessment Tool may be completed separately for each system, or it can be completed for all systems at once. However, if completing the tool for more than one system, make sure to add the values for all systems before entering in the data entry cells.
J16: iv

Sheet v) Assumptions
B2: Limitations
C3: Limitations
C5: - | D5: This program relies on conceptual cost curves to predict capital and operation and maintenance costs based on user entered data. The cost data is based on 2017 costs and is inflated using 3% inflation rate for subsequent years.
C6: - | D6: The cost curves were developed based on data from water supply systems constructed in Newfoundland and Labrador and information supplied by various vendors. The curves were calculated based on many assumptions and allowances. The program is intended only to help communities establish water taxes.
C7: - | D7: Cost predictions generated by this program do not include depreciation. The tool does not consider existing non-operating expenses such as debt servicing.
C8: - | D8: All cost predictions are provided in Canadian dollars
C9: - | D9: Cost predictions DO NOT include applicable taxes
C10: - | D10: The cost predictions generated through this tool do not include special costs for land acquisition, permit costs, legal fees, or site specific costs.
C11: - | D11: Actual capital costs and operation and maintenance costs for system upgrades may vary substantially from those calculated by this program. It is recommended that a site specific engineering study should be completed to establish costs used for capital budgeting.
J16: v

Sheet vi) Start
B2: Section Selection
G5: SECTION 1 - ANALYSIS OF EXISTING COSTS
G6: In this section, users will enter existing operation and maintenance costs and revenue data. The tool will evaluate the existing operation and maintenance costs and will provide a recommended water tax to adequately fund the operation of the water supply system.
G8: SECTION 2 - ANALYSIS OF UPGRADE COSTS
G9: This section is for communities that are evaluating capital upgrade options. The community can select a type of treatment system to construct, and the tool will provide a range of potential capital and operation and maintenance costs. The tool will then generate a water tax to fund the capital and operation and maintnenace costs of the proposed system.
G11: SECTION 3 - INFRASTRUCTURE REPLACEMENT COST
G12: This section is for communities that are evaluating annual cost of infrastructure replacement. The community can select a type of infrastructure asset to replace, and the tool will provide the age and price of the asset where annual cost can be calculated. The tool will generate the unfunded portion and then the total annual cost of the selected assets.
J17: vi

Sheet 1.1) Community Data
B2: PART 1
B3: Community Data
C4: General
C6: System:
C7: Type of Water Supply: | I7: <Type of Supply>
C9: Population
C11: Enter the permanent service population for the water system being evaluated:
C13: Existing System Flows
C15: Enter flow data below and select the correct units.
C16: Note: If flow data is not entered, the Cost Accounting Tool will estimate flows based on population data.
H17: Value | I17: Units | P17: =IF(OR(H18=0,I18="<Units>"),"","Per Capita Consumption") -> 
C18: Average Flow/Water Use: | I18: m3/d | K18: =IF(H18>0,Calculations!G51,"") ->  | L18: =IF(H18=0,"","m3/d") ->  | P18: =IF(OR(H18=0,I18="<Units>"),"",ROUND(Calculations!D62,0)) -> 
C19: Maximum Day Flow: | I19: <Units> | K19: =IF(I19="<Units>","",IF(H19>0,Calculations!G52,"")) ->  | L19: =IF(H19=0,"","m3/d") ->  | P19: =IF(OR(H19=0,I19="<Units>"),"",ROUND(Calculations!D63,0)) -> 
C20: Peak Hour Flow: | I20: <Units> | K20: =IF(I20="<Units>","",IF(H20>0,Calculations!G53,"")) ->  | L20: =IF(H20=0,"","m3/d") -> 
J26: 1.1

Sheet 1.2) Existing System
B2: PART 1
B3: Description of Existing Water Supply System
C4: Existing Treatment & Disinfection Systems
C6: Select the disinfection system(s) operated at the facility:
D7: Sodium Hypochlorite (liquid chlorine)
D8: Chlorine Gas
D9: Onsite Sodium Hypochlorite Generation (Mixed Oxidants)
D10: Calcium Hypochlorite (chlorine powder)
D11: UV Disinfection
C14: Existing Treatment & Disinfection Systems
C16: If the treatment process includes pH adjustment, select the chemical that is used:
D17: None | G17: Soda Ash | K17: Lime | O17: Caustic Soda
C19: If applicable, select the treatment processes that are provided at the existing facility:
D20: Inline Filtration (for particle removal) | L20: Membrane Treatment
D21: Iron / Manganese Removal | L21: Conventional WTP
D22: Arsenic Removal | L22: PWDU
C24: Does the existing water distribution system include chlorine booster stations?
C29: If chlorine boosting is included, what fraction of the distribution system receives water that has been boosted with chlorine?
C33: Existing Pumping Systems
C35: Does the existing water supply system include any of the following pumping systems:
D36: Ground water pumping
D37: Low lift pumping (pumping from surface water source to treatment building)
D38: High lift pumping (pumping from treatment building to distribution system)
D39: Distribution System Pressure Booster Pumping
D40: If distribution system booster pumping is provided, approximately what fraction of the distribution system is fed from the booster pumping station?
J46: 1.2

Sheet 1.3) Existing Expenditures
B2: PART 1
B3: Existing Expenditures
C4: Enter the actual expenditures from the most recent year. Items that would be included within each category are listed below, and a detailed description of each item can be reviewed by clicking the "Detailed Descriptions" buttons.
C6: Expenditures
C7: Expeniture Category | Q7: =Calculations!D176&" Actual Expenditures" -> Actual Expenditures
C8: Source of Supply
C9: Pumping & Power
C10: Water Disinfection & Treatment
C11: Transmission & Distribution
C12: Administration
C14: Source of Supply
C15: These costs may include the following items:
C16: - | D16: Wages and Benefits
C17: - | D17: Maintenance of Source of Supply - Surface Water Watersheds incl. travel
C18: - | D18: Maintenance of Source of Supply - Groundwater Recharge Areas incl. travel
C19: - | D19: Professional Services - Consulting & Engineering
C21: Power & Pumping
C22: These costs may include the following items:
C23: - | D23: Wages and Benefits
C24: - | D24: Maintenance of Pump Station Structures incl. travel
C25: - | D25: Maintenance of Pumps and Controls incl. travel
C26: - | D26: Electricity
C27: - | D27: Fuel for Generators and for Building Heat
C28: - | D28: Professional Services
C30: Water Disinfection and Treatment
C31: These costs may include the following items:
C32: - | D32: Wages and Benefits
C33: - | D33: Electricity and Fuel
C34: - | D34: Chemicals
C35: - | D35: Maintenance of Treatment Plant Equipment
C36: - | D36: Maintenance and Repair of Buildings and Structures
C37: - | D37: Maintenance of Computer Controls and SCADA
C38: - | D38: Materials and Supplies
C39: - | D39: Sludge Handling and Disposal
C40: - | D40: Water Testing
C41: - | D41: Vehicle Expense Including Vehicles and Operating Costs
C42: - | D42: Professional Services
C45: Transmission & Distribution
C46: These costs may include the following items:
C47: - | D47: Wages and Benefits
C48: - | D48: Maintenance of Water Mains Including Valves
C49: - | D49: Maintenance of Service Laterals to the Property Boundary
C50: - | D50: Maintenance of Water Reservoirs and Storage Tanks
C51: - | D51: Maintenance of Hydrants Including Hydrant Valves
C52: - | D52: Cell Phones and Dedicated Communication Lines
C53: - | D53: Supplies/Materials/Tools/Equipment
C54: - | D54: Leak Detection
C55: - | D55: Vehicle Expense Including Vehicles and Operating Costs
C56: - | D56: Professional Services
C58: Administration
C59: These costs may include the following items:
C60: - | D60: Administration costs allocated to drinking water service
C61: *Note: Administration costs are typically in the range of 10% of all other operation and maintenance costs
J66: 1.3
C80: Source of Supply
C81: Item | I81: Description
C82: Source of Supply | I82: The Source of Supply expenses relate to the maintenance of the surface watershed for surface water supplies and the recharge area for groundwater supplies.
C83: Wages and Benefits | I83: This expense item is the estimated cost for staff to maintain the watershed or groundwater recharge area. Staff time could relate to cleaning of intake screens for surface water, tree cutting, garbage collection, placement and maintenance of signage, fencing and responding to public concerns to name a few items. Benefits relate to overheads including matching contributions for income tax, CPP, EI, health plans and vacations are included.
C84: Maintenance of Source of Supply Surface Watersheds including Travel | I84: This expense item relates to expenses, other than Wages and Benefits, that pertain to maintaining the surface watershed. This item might include replacing intake screen, materials for maintenance of the intake screens, gravel, stone or concrete for dam and/or intake maintenance, signage, gravel for roads and travel to the undertake work to name a few.
C85: Maintenance of Source of Supply Groundwater Recharge Areas including Travel | I85: This expense item relates to expenses, other than Wages and Benefits, that pertain to maintaining the groundwater recharge area. This item might include drilling new supply and/or monitoring wells, cleaning screens on existing wells, wellhead maintenance, signage, gravel for roads, fencing and travel to undertake work to name a few.
C86: Professional Services | I86: This expense item relates to the hiring of outside consultants to undertake works that require professional input relating to the Source of Supply.
C87: Other | I87: This category is included such that the Operator/Supervisor can add other items that are unique to the location.
C91: Power and Pumping
C92: Item | I92: Description
C93: Power and Pumping | I93: The Power and Pumping expenses relate to the operation and maintenance of all pumping equipment associated with the water system including supply pumps for surface water, supply/well pumps for groundwater and booster pumps to boost water pressure in the distribution network.
C94: Wages and Benefits | I94: This expense item is the estimated cost for staff to operate and maintain all the pumping equipment in the system. Staff time could relate to routine checking of pump operation, routine cleaning and lubrication, and pressure checks to ensure the pumps are operating as per the requirements of the system. Benefits relate to overheads including matching contributions for income tax, CPP, EI, health plans and vacations are included.
C95: Maintenance of Pumps and Controls including Travel | I95: This expense item relates to expenses, other than Wages and Benefits, that pertain to maintaining the pumping equipment including pump controls. This item might include routine maintenance of pumps, monitoring of electrical power consumption, monitoring of pump outputs if flow meters are installed, inspection of pump control panels and travel to undertake work to name a few.
C96: Electricity | I96: This expense is to cover the cost of supplying electricity to the pumping equipment including electricity for space heating if required.
C97: Fuel for Generators and Building Heat | I97: This expense is to cover the cost of fuel for generators, diesel/gasoline powered backup pumps and heating oil/propane for building heat.
C98: Professional Services | I98: This expense item relates to the hiring of outside consultants to undertake works that require professional input relating to pumping requirements in the system.
C99: Other | I99: This category is included such that the Operator/Supervisor can add other items that are unique to the location
C103: Water Disinfection & Treatment
C104: Item | I104: Description
C105: Water Treatment | I105: The Water Treatment expenses relate to the operation and maintenance of the water treatment equipment associated with water system including operation and maintenance of water treatment plants and chlorination systems.
C106: Wages and Benefits | I106: This expense item is the estimated cost for staff to operate and maintain the water treatment equipment. Staff time could relate to regular checking of treatment plant operation, adjustment of the treatment processes including chemical feed rates, routine testing to verify treatment requirements and performance, and routine chlorine residual testing as per the requirements of the regulators. Benefits relate to overheads including matching contributions for income tax, CPP, EI, health plans and vacations are included.
C107: Maintenance of Pump Station Structures including Travel | I107: This expense item relates to expenses, other than Wages and Benefits, that pertain to maintaining the pump station structures. This item might include routine maintenance on the structures including repair of damage caused by vandalism and/or storms and travel to undertake required works to name a few.
C108: Electricity and Fuel | I108: This expense is to cover the cost of supplying electricity to the water treatment system including electricity and/or heating oil/propane for space heating if required.
C109: Chemicals | I109: This expense is to cover the cost of all chemicals used in the water treatment process.
C110: Maintenance of Treatment Plant Equipment | I110: This expense item relates to expenses, other than Wages and Benefits, that pertain to maintaining the water treatment equipment. This item might include routine maintenance/replacment of chemical feed pumps, monitoring of electrical power consumption, monitoring of treatment plant production and backwash volumes, monitoring of turbidity and chlorine residual values to name a few.
C111: Maintenance of Pump Station Structures | I111: This expense item relates to expenses, other than Wages and Benefits, that pertain to maintaining the water treatment plant structures. This item might include routine maintenance on the structures including repair of damage cause by vandalism and/or storms and travel to undertake work to name a few.
C112: Maintenance of Computer Controls and SCADA | I112: This expense item relates to expenses, other than Wages and Benefits, that pertain to maintaining the computer systems in the water treatment plant including SCADA systems.
C113: Materials and Supplies | I113: This expense is to cover the cost of routine materials and supplies that are required for the operation of the Water Treatment Plant.
C114: Sludge Handling and Disposal | I114: This expense is to cover the cost of sludge handling at the Water Treatment Plant including short term storage, transportation (if required) and long term disposal.
C115: Water Testing | I115: This expense is to cover the cost of routine water testing as required for the operation by the Regulators of the Water Treatment Plant.
C116: Vehicle Expense Including Vehicles and Operating Costs | I116: This expense is to cover the cost of providing vehicles including operating costs that are required for the operation of the Water Treatment Plant. If dedicated vehicles are not required this expense item should be used for any travel expenses associated with the Water Treatment Plant.
C117: Professional Services | I117: This expense item relates to the hiring of outside consultants to undertake works that require professional input relating to pumping requirements in the system.
C118: Other | I118: This category is included such that the Operator/Supervisor can add other items that are unique to the location
C123: Transmission and Distribution
C124: Item | I124: Description
C125: Transmission and Distribution | I125: The Transmission and Distribution expenses relate to the operation and maintenance of all the water transmission and distribution system including the operation and maintenance of reservoirs/storage tanks, customer services/laterals and fire hydrants (if installed).
C126: Wages and Benefits | I126: This expense item is the estimated cost for staff to maintain and operate the water distribution network. Staff time could relate to locating and repairing leaks in distribution pipes including service laterals, routine maintenance of pressure reducing valves, maintenance and repair of reservoirs/storage tanks and any hydrants that may be installed in the water system. Benefits relate to overheads including matching contributions for income tax, CPP, EI, health plans and vacations are included.
C127: Maintenance of Water Mains including Valves | I127: This expense item relates to expenses, other than Wages and Benefits, that pertain to maintaining the water transmission and distribution pipes including valves. This item might include routine maintenance such as valve exercising and watermain flushing, location and repair of leaks, any outside contractors who provide backhoes/excavators and/or other equipment to name a few.
C128: Maintenance of Service Laterals to the Property Boundary | I128: This expense item relates to expenses, other than Wages and Benefits, that pertain to maintaining and repairing service laterals to customer properties including location of shut off valves on water mains and curb shut off valves at the property boundary and any outside contractors who provide backhoes/excavators and/or other equipment.
C129: Maintenance of Water Reservoirs and Storage Tanks | I129: This expense item relates to expenses, other than Wages and Benefits, that pertain to maintaining and repairing all water reservoirs and storage tanks in the water distribution system. This item might include routine inspection for leaks, repairs to structures, and maintenance of altitude valves and any outside contractors who provide backhoes/excavators and/or other equipment to name a few.
C130: Maintenance of Hydrants including Hydrant Valves | I130: This expense item relates to expenses, other than Wages and Benefits, that pertain to maintaining hydrants (if installed) in the distribution system. This item might include routine maintenance such as painting, leak repairs, exercising hydrant valves and any outside contractors who provide backhoes/excavators and/or other equipment to name a few.
C131: Cell Phones and Dedicated Communication Lines | I131: This expense is to cover the cost of providing cell phones and any dedicated communication lines that may exist in the water distribution system.
C132: Supplies/Materials/Tools and Equipment | I132: This expense is to cover the cost of routine supplies, materials, tools and equipment that are required for the operation of the water distribution system.
C133: Leak Detection | I133: This expense is to cover the cost of leak detection services provided by outside service providers.
C134: Vehicle Expense Including Vehicles and Operating Costs | I134: This expense is to cover the cost of providing vehicles including operating costs that are required for the operation and maintenance of the distribution system. If dedicated vehicles are not required this expense item should be used for any travel expenses associated with the water distribution system.
C135: Professional Services | I135: This expense item relates to the hiring of outside consultants to undertake works that require professional input relating to pumping requirements in the system.
C136: Other | I136: This category is included such that the Operator/Supervisor can add other items that are unique to the location
C141: Administration and General
C142: Item | I142: Description
C143: Administration and General | I143: The Administration and General expenses relate to the overall administration of the water system including customer service, billing, annual audits and the provision of insurance.
C144: Wages and Benefits | I144: This expense item is the estimated cost for staff to administer the water system. Staff time could relate to receiving and directing phone calls, preparation of bills for the water service, collection of bills, annual audit and provision of insurance. Benefits relate to overheads including matching contributions for income tax, CPP, EI, health plans and vacations are included.
C145: Administrative Office/Phones/Billing/Supplies | I145: This expense item relates to expenses, other than Wages and Benefits, that pertain to operating the administration office. This item might include office space, office supplies, postage, computer allowance including software, phones, billing and miscellaneous office supplies to name a few.
C146: Allowance for Doubtful Accounts | I146: This expense is to cover the cost of doubtful accounts or bills that have been issued and payment is doubtful.
C147: Rents/Building Operation/Maintenance | I147: This expense is to cover the cost of any building, or part of a building that are provided for the operation of the water system.
C148: Liability and Facility Insurance | I148: This expense is to cover the cost of any insurance required for the operation of the water system.
C149: Regulatory/Legal/Auditor | I149: This expense is to cover the cost of any regulatory requirements such as water rights, legal advice and audit services required by the water system.
C150: Professional Services | I150: This expense item relates to the hiring of outside consultants to undertake works that require professional input relating to pumping requirements in the system.
C151: Other | I151: This category is included such that the Operator/Supervisor can add other items that are unique to the location.

Sheet 1.4) Existing Revenue
B2: PART 1
B3: Existing Revenue
C4: Revenue
C6: Water Taxes
C7: Enter the number of customers that pay Water Taxes:
C8: Enter the annual water rate/water tax charged to each customer:
C11: Water and Sewer Taxes
C12: Enter the number of customers that pay Water & Sewer Taxes:
C13: Enter the annual Water & Sewer Tax rate charged to each customer:
C14: Select the approximate percentage of the tax that funds sewer operations: | Q14: 0
C17: Other Sources of Revenue
C18: If industrial/commercial customers are charged a different rate:
D19: - Enter the number of commercial/industrial customers charged at this rate
D20: - Enter the rate charged to each industrial/commercial customer
C22: Enter the total revenue generated from any other sources:
O26: Total Revenue | Q26: =IF(Calculations!D216>0,Calculations!D216,"") -> 
J32: 1.4

Sheet 1.5) Results
B2: PART 1
B3: Results
C4: Net Revenue
D6: Total Revenue | N6: =Calculations!D216 -> 0
D7: Total Expenditures | N7: =Calculations!D227 -> 0
D10: Balance | N10: =Calculations!D228 -> 0 | U10: =N6 -> 0 | V10: Revenue
U11: =N7 -> 0 | V11: Expenses
D12: =Calculations!D230 ->  | U12: =IF(N10<0,N10*-1,0) -> 0
C14: Evaluation of Existing Costs
N16: Recommended
D17: Item | L17: ="Actual "&Calculations!D176 -> Actual | O17: Annual Investment1
D19: Source of Supply | L19: =IF(Calculations!D180=0,"",Calculations!D180) ->  | N19: =Calculations!F161 -> 0
D20: Pumping | L20: =IF(Calculations!D181=0,"",Calculations!D181) ->  | N20: =Calculations!F162 -> 0
D21: Treatment & Disinfection | L21: =IF(Calculations!D182=0,"",Calculations!D182) ->  | N21: =Calculations!F163 -> 0
D22: Transmission & Distribution | L22: =IF(Calculations!D183=0,"",Calculations!D183) ->  | N22: =Calculations!F164 -> 0
D23: Administration | L23: =IF(Calculations!D184=0,"",Calculations!D184) ->  | N23: =Calculations!F165 -> 0
D24: Total | L24: =IF(Calculations!D185=0,"",Calculations!D185) ->  | N24: =Calculations!F166 -> 0
D26: =Calculations!C243 -> 
C28: 1Recommended investments were estimated based on the size of the community and characteristics of the water supply system. These values were estimated assuming best practices are followed for items such as montoring, preventive maintenance, etc. While every water supply system is unique, large variations between actual and typical expenditures may indicate that actual budgets should be re-evaluated.
C31: Gap Analysis
L33: Annual Water Tax | N33: Gap From
L34: per Customer | N34: Current
D35: Current | L35: =Calculations!D219 ->  | N35: - | U35: Current Tax
D36: Minimum to Fund Existing Operations | L36: =Calculations!D251 ->  | N36: =Calculations!E251 ->  | U36: To Fund Current Operations
D37: Minimum to Fund Recommended Investment | L37: =Calculations!D252 ->  | N37: =Calculations!E252 ->  | U37: To Fund Best Practices Operations
D39: =IF(Calculations!D254=TRUE,Calculations!C255,Calculations!C256) -> 
I46: 1.5

Sheet 2.1) Start
B2: Part 2
B3: Analysis of Proposed Upgrades
C6: This section of the Full Cost Accounting Assessment Tool is for communities that are considering upgrades to their water supply system. Enter information to describe the proposed upgrades as well as the existing components that will remain in operation. From the information, the Tool will use cost ratings curves to generate an opinion of capital and operation and maintenance costs. The Full Cost Accounting Assessment Tool will then calculate a water tax that would allow the community to achieve full cost recovery.
C12: If a cost estimate for an upgrade has already been developed by an engineer or other qualified professional, this value should be entered in the Upgrade Costspage, as such costs are considered to be more accurate than the costs predicted by the tool.
C16: Costs predicted by the Full Cost Accounting Assessment Tool do not include: Provincial or Federal sales or service taxes, depreciation, or existing non-operating expenses such as debt servicing.
C19: If a particular type of upgrade is not included in the tool, the user should enter the value manually on the upgrade costs page. Operation and maintenance costs for items entered manually will not be captured by the Full Cost Accounting Assessment Tool, and therefore, the user should keep this in mind when evaluating the recommended future water tax result.
J27: 2.1

Sheet 2.2) Design Parameters
B2: Part 2
B3: Design Parameters for Upgrades
C4: Design Parameters for Proposed Upgrades
C6: Enter the current population who will be serviced by the upgraded infrastructure/system. If flow data is available, enter it in the fields below and select the correct flow units. If flows are not known, leave the fields blank and flows will be estimated by assuming per capita consumption of 340 L/p/d.
P9: Per Capita Use (L/p/d)
I10: Value | J10: Units | M10: Flow (m3/d)
D11: Population Serviced | I11: ='1.1) Community Data'!Q11 -> 0
D12: Average Flow | J12: m3/d | M12: =IF(AND(I12>0,NOT(OR(J12="",J12="<Units>"))),Calculations!G266,"") ->  | P12: =IF(AND(I12>0,NOT(OR(J12="",J12="<Units>"))),Calculations!H266,"") -> 
D13: Maximum Day Flow | J13: <Units> | M13: =IF(AND(I13>0,NOT(OR(J13="",J13="<Units>"))),Calculations!G267,"") ->  | P13: =IF(AND(I13>0,NOT(OR(J13="",J13="<Units>"))),Calculations!H267,"") -> 
D14: Peak Flow | J14: <Units> | M14: =IF(AND(I14>0,NOT(OR(J14="",J14="<Units>"))),Calculations!G268,"") -> 
C17: Select the design life (in years) for the upgrades: | L17: 15 | N17: 20 | P17: 25 | R17: 30
C19: (This design life is used to establish the amortization for loans taken out for upgrades; if no loans are taken out the design life input here is not used)
C22: The new treatment facility will need to have capacity to service the existing population, as well as the
C23: population at the end of the system's service life. Enter population data from the most recent three
C24: censuses below in order to determine population growth rate, or skip to the groth rate selection dropdown menu below:
I26: Census Year | K26: Population
I27: =IF(Title!Q21="","",Calculations!C288) -> 
I28: =IF(I27="","",Calculations!C289) -> 
I29: =IF(I28="","",Calculations!C290) -> 
D31: =IF(K27*K28>0,Calculations!C293,"") -> 
C34: Select an Annual Population Growth Rate (%) for the system's service life:
C40: Based on the data above, the design parameters are as follows:
G41: Current | L41: ="Year "&Title!Q21+Calculations!D284 -> Year 15
C42: Population: | F42: =Calculations!D265 -> 0 | L42: =ROUND(Calculations!D323,0) -> 0
C43: Avg. Day Flow: | F43: =Calculations!D272 -> 0 | H43: m3/d | I43: =Calculations!E272 -> 0 | J43: =Calculations!E327 -> L/p/d | L43: =Calculations!D332 -> 0 | N43: =Calculations!E332 -> m3/d | O43: =Calculations!D327 -> 0 | Q43: =Calculations!E327 -> L/p/d
C44: Max. Day Flow: | F44: =Calculations!D273 -> 0 | H44: m3/d | I44: =Calculations!E273 -> 0 | J44: =Calculations!E328 -> L/p/d | L44: =Calculations!D333 -> 0 | N44: =Calculations!E333 -> m3/d | O44: =Calculations!D328 -> 0 | Q44: =Calculations!E328 -> L/p/d
C45: Peak Hour Flow: | F45: =Calculations!D274 -> 0 | H45: m3/d | L45: =Calculations!D334 -> 0 | N45: =Calculations!E334 -> m3/d

Sheet 2.3) Treatment Upgrades
B2: Part 2
B3: Upgrades: Description of Proposed Treatment
C4: Proposed Disinfection System
C6: What type of chemical disinfection system will be used?
D7: Sodium Hypochlorite (liquid chlorine)
D8: Chlorine Gas
D9: Onsite Generated Sodium Hypochlorite (Mixed oxidants)
D10: Calcium Hypochlorite
C12: Will existing disinfection equipment be used or will new equipment be purchased?
D13: New
D14: Existing
C16: Proposed Treatment Process
C18: Specify the processes that will be included, whether the equipment will be new or existing.
C19: Note: Only select the processes that are included.
C20: Treatment Process | G20: Equipment
C21: UV Disinfection System | H21: Not included | K21: New | M21: Existing
C22: pH Adjustment System | H22: Not included | K22: New | M22: Existing
C23: Inline Pressure Filtration | H23: Not included | K23: New | M23: Existing
C24: Iron / Manganese Removal | H24: Not included | K24: New | M24: Existing
C25: Arsenic Removal | H25: Not included | K25: New | M25: Existing
C26: Membrane Treatment | H26: Not included | K26: New | M26: Existing
C27: Conventional WTP | H27: Not included | K27: New | M27: Existing
C28: PWDU | H28: Not included | K28: New | M28: Existing
C30: New Treatment Plant Building
C32: Will a new building be required? | O32: Yes | R32: No
C34: If a new building is required, select the processes that will need to be housed in the new building?
C35: In this list below, do not select processes that will be housed in an existing building.
F36: Chlorine Disinfection System (Sodium hypochlorite, chlorine gas, other)
F37: UV Disinfection System
F38: pH Adjustment System
F39: Inline Pressure Filtration
F40: Fe and/or Mn Removal
F41: As Removal
F42: Membrane Treatment
F43: Conventional WTP
F44: PWDU
C46: Yard Piping
C48: Yard piping is defined as the in-ground piping constructed at the treatment facility site. Do not include distribution system upgrades here, as there is a separate page for those upgrades.
C51: Enter the length of piping connecting the new water WTP to the nearest point in the distribution system. If unknown, the program assumes 20 m. | S51: m
C55: If the treatment plant will require a connection to the wastewater collection system, enter the distance to the nearest point in the collection system. | S55: m
C58: Note: if a conventional water treatment process is being used, a connection to the collection system is required. This program assumes that the facility can be connected to the sewer system using a gravity collection system.
J64: 2.3
C135: Description of Disinfection Chemicals
C136: Disinfection Chemical | I136: Description
C137: Sodium Hypochlorite | I137: Sodium hypochlorite is liquid chlorine. Generally it is a preferred disinfectant for smaller systems, because it is relatively easy to handle compared to chlorine gas. The product used in the water treatment industry typically has a trade strength of 12% available chlorine (10.2% sodium hypochlorite).
C138: Gas Chlorination | I138: Chlorine gas is typically delivered in 120 lb cylinders or tonne containers. The product is 100% available chlorine, so it is typically used in larger installations where large tanks would otherwise be required for storing liquid chlorine. The gas must be stored in a separate room from other process equipment. Facilities using chlorine gas must have chlorine gas detectors and alarms. Operators handling chlorine gas must be trained for using self-contained breathing apparatus. A bystander must also be present when changing chlorine containers.
C139: Onsite Sodium Hypochlorite Generation | I139: Onsite sodium hypochlorite generation systems use high purity salt to create a dilute sodium hypochlorite product (0.8%). The process requires a power input to create sodium hypochlorite and has a high capital cost. The chemicals are easier to handle and the shelf life of the salt is substantially greater than that of 12% sodium hypochlorite.
C140: Calcium Hypochlorite | I140: Calcium hypochlorite is a solid form of chlorine, which is typically supplied in powdered form containing 60% available chlorine. It has a longer shelf life than sodium hypochlorite and has slightly lower cost per kg of available chlorine. It requires a separate tanks for batching and dosing. Batches are prepared by dissolving the solid in a batch tank for 24 hours. THe batch tank must be fit with a motorized mixer.
C141: UV Disinfection | I141: UV disinfection is a method of disinfection that does not use chemicals. The light inactivates microorganisms through destruciton of DNA. It requires a power input and efficacy is dependent on clarity of the water. It is effective at inactivating pathogens that are chlorine resistant, such as Crypto and Giardia. It does not, however, produce a residual, so a chlorine based chemical must also be included in order to provide secondary disinfection (free chlorine residual throughout distribution system).
C156: Description of Treatment Processes
C157: Disinfection Chemical | I157: Description
C158: pH Adjustment | I158: In this process, chemicals are added to increase pH in the distribution system. This process is generally included to reduce corrosion of distribution system and premise plumbing pipes and components. This helps protect distribution system pipes and reduces concentrations of metals such as iron, copper, and lead.
C159: Inline Pressure Filtration | I159: Inline pressure filtration uses media installed in fibreglass or steel vessels to reduce turbidity and remove particles. These systems must be pressurized, either through gravity or by using pumps.
C160: Iron and/or Manganese Removal | I160: Iron and manganese removal is used where iron concentrations exceed 0.3 mg/L or manganese concentrations exceed 0.05 mg/L. Iron and manganese are aesthetic parameters, as they can contribute to the water's colour and cause staining of sinks, toilets, and clothing. Iron and manganese systems generally use a special media, which may be installed in gravity or pressure filters. Water is pre-treated with an oxidant such as chlorine or potassium permanganate.
C161: Arsenic Removal | I161: Arsenic is a health based parameter, and arsenic treatment is required where arsenic concentrations in the source water exceed 0.01 mg/L. Arsenic removal systems often use a coated media installed in fibreglass or steel tanks. The media requires periodic replacement.
C162: Membrane Filtration | I162: Membrane filtration is a physical treatment process where particles are physically removed by exclusion, as water is passed through a membrane with an effective pore size. The process is often used to remove particles and organics (colour). Membranes are classified based on their pore sizes. Depending on the type of membrane process used, the systems may or may not require the use of pre-treatment chemicals to achieve organics (colour) removal. They require periodic cleaning, which is typically accomplished using citric acid. As a result, come means of handling the process waste must be included.
C163: Conventional WTP | I163: Conventional water treatment plants use chemical pre-treatment to create particles that can be removed through a clarification step and/or filtration. Examples include: dissolved air flotation, conventional filtration, and direct filtration. The processes require chemical coagulation and pH adjustment. A significant amount of process residuals, which include chemicals such as aluminum, are generated through filter backwashing. As a result, these facilities must be connected to the community's wastewater collection system or they require some method of residuals treatment.
C164: Potable Water Dispensing Units | I164: Potable water dispensing units are suitable alternatives for smaller communities. The units includes treatment, disinfection, and dispensing systems. Members from the community collect water for potable use from the units, and transport the water using containers. The units are designed to meet the potable consumption demands of the community. Other non-potable uses are met through traditional distribution systems.
C197: Description of Pumping Systems
C198: Disinfection Chemical | I198: Description
C199: Low Lift Pumping | I199: Low lift pumps move water from the source to the treatment facility. They operate at a relatively low discharge pressure and are required where the source water is not at an elevation that is insufficiently above the elevation of the treatment facility.
C200: High Lift Pumping | I200: High lift pumps move water from the treatment plant to the distribution system. In cases where water is pumped from the source (groundwater or surface), through treatment, and directly to the distribution system, it may be considered high lift pumping.
C201: Distribution System Pumping | I201: Distribution system pumps increase pressure within the distribution system. These are also often referred to as booster pumps. They are required distribution systems with substantial elevation differences.

Sheet 2.4) Pumping Upgrades
B2: Part 2
B3: Description of Proposed Pumping
C4: Describe the types of pumps that will be included in the proposed system
C6: Indicate if pumping equipment will be included, whether it will be new or existing,
C7: and if the equipment will be installed in a new or existing building.
C8: Note: you only need to select the processes that are included. Those that are not included can be left as is.
D10: Pumping Process
D11: Well Pump | J11: Not Included | N11: New | R11: Existing
D13: Low Lift Pump | J13: Not Included | N13: New | R13: Existing
D15: High Lift Pump | J15: Not Included | N15: New | R15: Existing
C17: Indicate below if a new building is being constructed to house the pumping systems.
D18: Low Lift Pump
D19: High Lift Pump
J27: 2.4
C53: Description of Pumping Systems
C54: Disinfection Chemical | I54: Description
C55: Low Lift Pumping | I55: Low lift pumps move water from the source to the treatment facility. They operate at a relatively low discharge pressure and are required where the source water is not at an elevation that is insufficiently above the elevation of the treatment facility.
C56: High Lift Pumping | I56: High lift pumps move water from the treatment plant to the distribution system. In cases where water is pumped from the source (groundwater or surface), through treatment, and directly to the distribution system, it may be considered high lift pumping.
C57: Distribution System Pumping | I57: Distribution system pumps increase pressure within the distribution system. These are also often referred to as booster pumps. They are required distribution systems with substantial elevation differences.

Sheet 2.5) Distribution Upgrades
B2: Part 2
B3: Description of Distribution Upgrades
C4: Treated Water Storage
C6: Do the proposed upgrades include the construction of a new
C7: treated water storage tanks? | O7: <Yes/No>
C9: Will storage tank include a fire storage component? | O9: <Yes/No>
C11: The default fire storage value for this program is 2 hours. If a different value should be used, enter it here:
O12: <Fire Storage> | R12: minutes
C14: The default fire flowrate is 1250 gpm. If a different value should be used, enter it here:
O15: <Fire flow> | R15: gpm
C17: *NOTE: The level of fire protection is the responsibility of the municipality. Fire flow requirements are typically established by the appropriate Insurance Advisory Organization, and should be satisfied where fire protection is provided.
C19: New Distribution System
C21: Is the community planning to expand the distribution system? | O21: <Yes/No>
C23: Enter the length of new distribution system that is being installed | R23: m
C25: Enter the number of valves that will be installed | R25: m
C27: Enter the number of hydrants that will be installed
J32: 2.5
C76: Description of Disinfection Chemicals
C77: Disinfection Chemical | I77: Description
C78: Sodium Hypochlorite | I78: Sodium hypochlorite is liquid chlorine. Generally it is a preferred disinfectant for smaller systems, because it is relatively easy to handle compared to chlorine gas. The product used in the water treatment industry typically has a trade strength of 12% available chlorine (10.2% sodium hypochlorite).
C79: Gas Chlorination | I79: Chlorine gas is typically delivered in 120 lb cylinders or tonne containers. The product is 100% available chlorine, so it is typically used in larger installations where large tanks would otherwise be required for storing liquid chlorine. The gas must be stored in a separate room from other process equipment. Facilities using chlorine gas must have chlorine gas detectors and alarms. Operators handling chlorine gas must be trained for using self-contained breathing apparatus. A bystander must also be present when changing chlorine containers.
C80: Onsite Sodium Hypochlorite Generation | I80: Onsite sodium hypochlorite generation systems use high purity salt to create a dilute sodium hypochlorite product (0.8%). The process requires a power input to create sodium hypochlorite and has a high capital cost. The chemicals are easier to handle and the shelf life of the salt is substantially greater than that of 12% sodium hypochlorite.
C81: Calcium Hypochlorite | I81: Calcium hypochlorite is a solid form of chlorine, which is typically supplied in powdered form containing 60% available chlorine. It has a longer shelf life than sodium hypochlorite and has slightly lower cost per kg of available chlorine. It requires a separate tanks for batching and dosing. Batches are prepared by dissolving the solid in a batch tank for 24 hours. THe batch tank must be fit with a motorized mixer.
C82: UV Disinfection | I82: UV disinfection is a method of disinfection that does not use chemicals. The light inactivates microorganisms through destruciton of DNA. It requires a power input and efficacy is dependent on clarity of the water. It is effective at inactivating pathogens that are chlorine resistant, such as Crypto and Giardia. It does not, however, produce a residual, so a chlorine based chemical must also be included in order to provide secondary disinfection (free chlorine residual throughout distribution system).
C104: Description of Treatment Processes
C105: Disinfection Chemical | I105: Description
C106: pH Adjustment | I106: In this process, chemicals are added to increase pH in the distribution system. This process is generally included to reduce corrosion of distribution system and premise plumbing pipes and components. This helps protect distribution system pipes and reduces concentrations of metals such as iron, copper, and lead.
C107: Inline Pressure Filtration | I107: Inline pressure filtration uses media installed in fibreglass or steel vessels to reduce turbidity and remove particles. These systems must be pressurized, either through gravity or by using pumps.
C108: Iron and/or Manganese Removal | I108: Iron and manganese removal is used where iron concentrations exceed 0.3 mg/L or manganese concentrations exceed 0.05 mg/L. Iron and manganese are aesthetic parameters, as they can contribute to the water's colour and cause staining of sinks, toilets, and clothing. Iron and manganese systems generally use a special media, which may be installed in gravity or pressure filters. Water is pre-treated with an oxidant such as chlorine or potassium permanganate.
C109: Arsenic Removal | I109: Arsenic is a health based parameter, and arsenic treatment is required where arsenic concentrations in the source water exceed 0.01 mg/L. Arsenic removal systems often use a coated media installed in fibreglass or steel tanks. The media requires periodic replacement.
C110: Membrane Filtration | I110: Membrane filtration is a physical treatment process where particles are physically removed by exclusion, as water is passed through a membrane with an effective pore size. The process is often used to remove particles and organics (colour). Membranes are classified based on their pore sizes. Depending on the type of membrane process used, the systems may or may not require the use of pre-treatment chemicals to achieve organics (colour) removal. They require periodic cleaning, which is typically accomplished using citric acid. As a result, come means of handling the process waste must be included.
C111: Conventional WTP | I111: Conventional water treatment plants use chemical pre-treatment to create particles that can be removed through a clarification step and/or filtration. Examples include: dissolved air flotation, conventional filtration, and direct filtration. The processes require chemical coagulation and pH adjustment. A significant amount of process residuals, which include chemicals such as aluminum, are generated through filter backwashing. As a result, these facilities must be connected to the community's wastewater collection system or they require some method of residuals treatment.
C112: Potable Water Dispensing Units | I112: Potable water dispensing units are suitable alternatives for smaller communities. The units includes treatment, disinfection, and dispensing systems. Members from the community collect water for potable use from the units, and transport the water using containers. The units are designed to meet the potable consumption demands of the community. Other non-potable uses are met through traditional distribution systems.
C145: Description of Pumping Systems
C146: Disinfection Chemical | I146: Description
C147: Low Lift Pumping | I147: Low lift pumps move water from the source to the treatment facility. They operate at a relatively low discharge pressure and are required where the source water is not at an elevation that is insufficiently above the elevation of the treatment facility.
C148: High Lift Pumping | I148: High lift pumps move water from the treatment plant to the distribution system. In cases where water is pumped from the source (groundwater or surface), through treatment, and directly to the distribution system, it may be considered high lift pumping.
C149: Distribution System Pumping | I149: Distribution system pumps increase pressure within the distribution system. These are also often referred to as booster pumps. They are required distribution systems with substantial elevation differences.

Sheet 2.6) Cost Curve Predictions
B2: Part 2
B3: Cost Curve Predictions
C4: Predicted Capital Costs for Upgrades
C6: Enter the number of customers on the water supply system: | Q6: =IF('1.4) Existing Revenue'!Q7=""&'1.4) Existing Revenue'!Q12=""&'1.4) Existing Revenue'!Q19="","",'1.4) Existing Revenue'!Q7+'1.4) Existing Revenue'!Q12+'1.4) Existing Revenue'!Q19) -> 0
C7: Enter the Current Annual Water Tax: | Q7: =IFERROR('1.5) Results'!L35,"") -> 
C9: Has a cost estimate for the proposed upgrades been developed through an engineering study?
E11: Yes, the estimate is:
E12: No, have the tool calculate an approximate value based on historical data.
C13: Note: Estimates obtained through an engineering study are considered to be more reliable than the values generated by this program, which are based on cost data from previous projects in the Province.
C16: Enter the fraction of the capital cost will be covered by government funding: | Q16: <Funding>
C17: Note: Project funding is reduced by the amout of GST rebate due to the community if the full project project costs are expended. The community is responsible for applying for the appropriate rebates and interim financing of the rebates.
C20: Upgrade Component | K20: Capital Cost | N20: Government Contributions | Q20: Balance Covered by Community
C22: =Calculations!C537 -> Water Treatment Facility | K22: =IF(Calculations!D546>0,Calculations!D546,"") ->  | N22: =IF(Calculations!E546>0,Calculations!E546,"") ->  | Q22: =IF(Calculations!F546>0,Calculations!F546,"") -> 
C23: =Calculations!C538 -> Pumping Systems | K23: =IF(Calculations!D547>0,Calculations!D547,"") ->  | N23: =IF(Calculations!E547>0,Calculations!E547,"") ->  | Q23: =IF(Calculations!F547>0,Calculations!F547,"") -> 
C24: =Calculations!C539 -> Distribution | K24: =IF(Calculations!D548>0,Calculations!D548,"") ->  | N24: =IF(Calculations!E548>0,Calculations!E548,"") ->  | Q24: =IF(Calculations!F548>0,Calculations!F548,"") -> 
C25: =Calculations!C540 -> Storage | K25: =IF(Calculations!D549>0,Calculations!D549,"") ->  | N25: =IF(Calculations!E549>0,Calculations!E549,"") ->  | Q25: =IF(Calculations!F549>0,Calculations!F549,"") -> 
C26: Range of Probable Cost
D27: -30% | K27: =IF(Calculations!D551>0,Calculations!D551,"") ->  | N27: =IF(Calculations!E551>0,Calculations!E551,"") ->  | Q27: =IF(Calculations!F551>0,Calculations!F551,"") -> 
D28: Median | K28: =IF(Calculations!D550>0,Calculations!D550,"") ->  | N28: =IF(Calculations!E550>0,Calculations!E550,"") ->  | Q28: =IF(Calculations!F550>0,Calculations!F550,"") -> 
D29: +30% | K29: =IF(Calculations!D552>0,Calculations!D552,"") ->  | N29: =IF(Calculations!E552>0,Calculations!E552,"") ->  | Q29: =IF(Calculations!F552>0,Calculations!F552,"") -> 
C30: Notes:
C31: 1. The values above do not include taxes or take into account any site specific feastures, and were calculated based on historical costs from other projects.
C33: 2.The values presented in the table above were calculated to demonstrate the potential impacts that proposed upgrades may have on the annual costs of operating the water supply system. For capital budgeting, an assessment should be conducted by an engineer or qualified person.
C37: Predicted Operation and Maintenance Costs
C39: Item | M39: Predicted
N40: O&M Costs1
C41: Source of Supply | N41: =Calculations!E650 -> 0
C42: Pumping | N42: =Calculations!E651 -> 0
C43: Treatment & Disinfection | N43: =Calculations!E652 -> 0
C44: Transmission & Distribution | N44: =Calculations!E653 -> 0
C45: Administration | N45: =Calculations!E654 -> 0
C46: Total | N46: =Calculations!E655 -> 0
C48: 1Predicted O&M expenditures have been calculated based on the size of the community, characteristics of the water supply system, and the type of systems included in the proposed upgrade. These values were estimated assuming best practices are followed for items such as montoring, preventive maintenance, etc.
J54: 2.6

Sheet 2.7) Financing Results
B2: Part 2
B3: Financing and Water Taxes
C4: Financing
C6: If reserve funds will be used to reduce the loan amount, enter the amount:
C8: Enter the term length, in years, for the loan. Must not be more than 30 years.
C9: Enter the anticipated interest rate on any borrowed funds: | P9: <Loan Interest Rate>
C11: Select whether loan payments will be serial or blended. If this is not known, leave blank, and the program will use serial payments by default | P11: Blended payments
P12: Serial payments
C18: For Recommended Operations:
C20: Current Annual Water Tax per Household: | P20: =Calculations!D661 -> 
C21: Current Number of Customers: | P21: =Calculations!D660 -> 0
C22: Recommended Average Annual Water Tax (Year 1 following Upgrade) | P22: =Calculations!D663 -> 0
P23: ="$"&ROUNDUP(P22/12,0)&"/month" -> $0/month
C25: =IF(P20>P22,"","Annual Average Water Tax would need to be increased by $"&ROUND((P22-P20),0)&" per year in order to completely fund the upgrades.") -> 
J32: 2.7
C71: Source of Supply
C72: Item | I72: Description
C73: Blended Payment | I73: Blended payment is a loan repayment method where the loan is repaid in equal instalment amounts over the period of the loan.
C74: Serial Payment | I74: Serial payment is a loan repayment method where the principal is paid in equal amounts over the period of the loan. Interest payments decrease each period, meaning the highest annual payment is in the first year of the loan.

Sheet 3.1) Infrastructure Replacement
B2: Part 3
B3: Infrastructure Replacement Cost
D7: Choose Asset from Drop-down Menu for Calculation: | K7: Select Asset
D9: Insert Year of Asset Acquisition/Construction: | M9: Year
D11: Asset Age: | K11: =VLOOKUP(K7,Calculations!C669:K705,5,FALSE) -> 0 | M11: Years
D14: Estimated Book Life Remaining for Asset: | K14: =VLOOKUP(K7,Calculations!C669:L705,10,FALSE) -> 0 | M14: Years | O14: Insert Asset Life Remaining if Different from Book Value:
D17: Estimated Book Value for Asset Replacement:
K18: =VLOOKUP(K7,Calculations!C669:K705,6,FALSE) -> 0 | O18: Bank Interest Rate: | R18: 0 | S18: Construction Cost Inflation Rate: | W18: 0
D20: Asset Replacement Cost if Different from Book Value: | O20: Funded Portion | R20: 0
D25: Annualized Asset Replacement Cost: | K25: =VLOOKUP(K7,Calculations!C712:AK854,23,TRUE) -> 0 | O25: Total Annual Cost: | U25: =VLOOKUP(O25,Calculations!V856:Z856,4,FALSE) -> 0
D27: Annualized Unfunded Asset Replacement Cost: | K27: =VLOOKUP(K7,Calculations!C712:AK854,24,TRUE) -> 0 | O27: Total Unfunded Annual Cost: | U27: =VLOOKUP(O25,Calculations!V856:Z856,5,FALSE) -> 0
G30: Recommended Average Annual Water Tax Including Infrastracture Replacement Annualized Cost: | N30: =IFERROR("",Calculations!G663) -> 
M31: =IFERROR(Calculations!E663,"") -> 
D35: Infrastructure Asset type: | I35: Year of Acquisition/Construction | K35: Asset Replacement Cost | N35: Unfunded Replacement Cost | R35: Annualized Asset Replacement Cost | V35: Annualized Unfunded Asset Replacement Cost:
D36: =IF(Calculations!C713>"",Calculations!C713,"") ->  | I36: =IF(D36>"",VLOOKUP(D36,Calculations!$C$712:$AK$854,2,FALSE),"") ->  | K36: =IF(Calculations!C713>"",Calculations!AK713,"") ->  | N36: =IF(Calculations!C713>"",Calculations!AI713,"") ->  | R36: =IF(D36>"",Calculations!Y713,"") ->  | V36: =IF(D36>"",Calculations!Z713,"") -> 
D37: =IF(Calculations!C714>"",Calculations!C714,"") ->  | I37: =IF(D37>"",VLOOKUP(D37,Calculations!$C$712:$AK$854,2,FALSE),"") ->  | K37: =IF(Calculations!C714>"",Calculations!AK714,"") ->  | N37: =IF(Calculations!C714>"",Calculations!AI714,"") ->  | R37: =IF(D37>"",Calculations!Y714,"") ->  | V37: =IF(D37>"",Calculations!Z714,"") -> 
D38: =IF(Calculations!C715>"",Calculations!C715,"") ->  | I38: =IF(D38>"",VLOOKUP(D38,Calculations!$C$712:$AK$854,2,FALSE),"") ->  | K38: =IF(Calculations!C715>"",Calculations!AK715,"") ->  | N38: =IF(Calculations!C715>"",Calculations!AI715,"") ->  | R38: =IF(D38>"",Calculations!Y715,"") ->  | V38: =IF(D38>"",Calculations!Z715,"") -> 
D39: =IF(Calculations!C716>"",Calculations!C716,"") ->  | I39: =IF(D39>"",VLOOKUP(D39,Calculations!$C$712:$AK$854,2,FALSE),"") ->  | K39: =IF(Calculations!C716>"",Calculations!AK716,"") ->  | N39: =IF(Calculations!C716>"",Calculations!AI716,"") ->  | R39: =IF(D39>"",Calculations!Y716,"") ->  | V39: =IF(D39>"",Calculations!Z716,"") -> 
D40: =IF(Calculations!C717>"",Calculations!C717,"") ->  | I40: =IF(D40>"",VLOOKUP(D40,Calculations!$C$712:$AK$854,2,FALSE),"") ->  | K40: =IF(Calculations!C717>"",Calculations!AK717,"") ->  | N40: =IF(Calculations!C717>"",Calculations!AI717,"") ->  | R40: =IF(D40>"",Calculations!Y717,"") ->  | V40: =IF(D40>"",Calculations!Z717,"") -> 
D41: =IF(Calculations!C718>"",Calculations!C718,"") ->  | I41: =IF(D41>"",VLOOKUP(D41,Calculations!$C$712:$AK$854,2,FALSE),"") ->  | K41: =IF(Calculations!C718>"",Calculations!AK718,"") ->  | N41: =IF(Calculations!C718>"",Calculations!AI718,"") ->  | R41: =IF(D41>"",Calculations!Y718,"") ->  | V41: =IF(D41>"",Calculations!Z718,"") -> 
D42: =IF(Calculations!C719>"",Calculations!C719,"") ->  | I42: =IF(D42>"",VLOOKUP(D42,Calculations!$C$712:$AK$854,2,FALSE),"") ->  | K42: =IF(Calculations!C719>"",Calculations!AK719,"") ->  | N42: =IF(Calculations!C719>"",Calculations!AI719,"") ->  | R42: =IF(D42>"",Calculations!Y719,"") ->  | V42: =IF(D42>"",Calculations!Z719,"") -> 
D43: =IF(Calculations!C720>"",Calculations!C720,"") ->  | I43: =IF(D43>"",VLOOKUP(D43,Calculations!$C$712:$AK$854,2,FALSE),"") ->  | K43: =IF(Calculations!C720>"",Calculations!AK720,"") ->  | N43: =IF(Calculations!C720>"",Calculations!AI720,"") ->  | R43: =IF(D43>"",Calculations!Y720,"") ->  | V43: =IF(D43>"",Calculations!Z720,"") -> 
D44: =IF(Calculations!C721>"",Calculations!C721,"") ->  | I44: =IF(D44>"",VLOOKUP(D44,Calculations!$C$712:$AK$854,2,FALSE),"") ->  | K44: =IF(Calculations!C721>"",Calculations!AK721,"") ->  | N44: =IF(Calculations!C721>"",Calculations!AI721,"") ->  | R44: =IF(D44>"",Calculations!Y721,"") ->  | V44: =IF(D44>"",Calculations!Z721,"") -> 
D45: =IF(Calculations!C722>"",Calculations!C722,"") ->  | I45: =IF(D45>"",VLOOKUP(D45,Calculations!$C$712:$AK$854,2,FALSE),"") ->  | K45: =IF(Calculations!C722>"",Calculations!AK722,"") ->  | N45: =IF(Calculations!C722>"",Calculations!AI722,"") ->  | R45: =IF(D45>"",Calculations!Y722,"") ->  | V45: =IF(D45>"",Calculations!Z722,"") -> 
D46: =IF(Calculations!C723>"",Calculations!C723,"") ->  | I46: =IF(D46>"",VLOOKUP(D46,Calculations!$C$712:$AK$854,2,FALSE),"") ->  | K46: =IF(Calculations!C723>"",Calculations!AK723,"") ->  | N46: =IF(Calculations!C723>"",Calculations!AI723,"") ->  | R46: =IF(D46>"",Calculations!Y723,"") ->  | V46: =IF(D46>"",Calculations!Z723,"") -> 
D47: =IF(Calculations!C724>"",Calculations!C724,"") ->  | I47: =IF(D47>"",VLOOKUP(D47,Calculations!$C$712:$AK$854,2,FALSE),"") ->  | K47: =IF(Calculations!C724>"",Calculations!AK724,"") ->  | N47: =IF(Calculations!C724>"",Calculations!AI724,"") ->  | R47: =IF(D47>"",Calculations!Y724,"") ->  | V47: =IF(D47>"",Calculations!Z724,"") -> 
D48: =IF(Calculations!C725>"",Calculations!C725,"") ->  | I48: =IF(D48>"",VLOOKUP(D48,Calculations!$C$712:$AK$854,2,FALSE),"") ->  | K48: =IF(Calculations!C725>"",Calculations!AK725,"") ->  | N48: =IF(Calculations!C725>"",Calculations!AI725,"") ->  | R48: =IF(D48>"",Calculations!Y725,"") ->  | V48: =IF(D48>"",Calculations!Z725,"") -> 
D49: =IF(Calculations!C726>"",Calculations!C726,"") ->  | I49: =IF(D49>"",VLOOKUP(D49,Calculations!$C$712:$AK$854,2,FALSE),"") ->  | K49: =IF(Calculations!C726>"",Calculations!AK726,"") ->  | N49: =IF(Calculations!C726>"",Calculations!AI726,"") ->  | R49: =IF(D49>"",Calculations!Y726,"") ->  | V49: =IF(D49>"",Calculations!Z726,"") -> 
D50: =IF(Calculations!C727>"",Calculations!C727,"") ->  | I50: =IF(D50>"",VLOOKUP(D50,Calculations!$C$712:$AK$854,2,FALSE),"") ->  | K50: =IF(Calculations!C727>"",Calculations!AK727,"") ->  | N50: =IF(Calculations!C727>"",Calculations!AI727,"") ->  | R50: =IF(D50>"",Calculations!Y727,"") ->  | V50: =IF(D50>"",Calculations!Z727,"") -> 
D51: =IF(Calculations!C728>"",Calculations!C728,"") ->  | I51: =IF(D51>"",VLOOKUP(D51,Calculations!$C$712:$AK$854,2,FALSE),"") ->  | K51: =IF(Calculations!C728>"",Calculations!AK728,"") ->  | N51: =IF(Calculations!C728>"",Calculations!AI728,"") ->  | R51: =IF(D51>"",Calculations!Y728,"") ->  | V51: =IF(D51>"",Calculations!Z728,"") -> 
D52: =IF(Calculations!C729>"",Calculations!C729,"") ->  | I52: =IF(D52>"",VLOOKUP(D52,Calculations!$C$712:$AK$854,2,FALSE),"") ->  | K52: =IF(Calculations!C729>"",Calculations!AK729,"") ->  | N52: =IF(Calculations!C729>"",Calculations!AI729,"") ->  | R52: =IF(D52>"",Calculations!Y729,"") ->  | V52: =IF(D52>"",Calculations!Z729,"") -> 
D53: =IF(Calculations!C730>"",Calculations!C730,"") ->  | I53: =IF(D53>"",VLOOKUP(D53,Calculations!$C$712:$AK$854,2,FALSE),"") ->  | K53: =IF(Calculations!C730>"",Calculations!AK730,"") ->  | N53: =IF(Calculations!C730>"",Calculations!AI730,"") ->  | R53: =IF(D53>"",Calculations!Y730,"") ->  | V53: =IF(D53>"",Calculations!Z730,"") -> 
D54: =IF(Calculations!C731>"",Calculations!C731,"") ->  | I54: =IF(D54>"",VLOOKUP(D54,Calculations!$C$712:$AK$854,2,FALSE),"") ->  | K54: =IF(Calculations!C731>"",Calculations!AK731,"") ->  | N54: =IF(Calculations!C731>"",Calculations!AI731,"") ->  | R54: =IF(D54>"",Calculations!Y731,"") ->  | V54: =IF(D54>"",Calculations!Z731,"") -> 
D55: =IF(Calculations!C732>"",Calculations!C732,"") ->  | I55: =IF(D55>"",VLOOKUP(D55,Calculations!$C$712:$AK$854,2,FALSE),"") ->  | K55: =IF(Calculations!C732>"",Calculations!AK732,"") ->  | N55: =IF(Calculations!C732>"",Calculations!AI732,"") ->  | R55: =IF(D55>"",Calculations!Y732,"") ->  | V55: =IF(D55>"",Calculations!Z732,"") -> 
D56: =IF(Calculations!C733>"",Calculations!C733,"") ->  | I56: =IF(D56>"",VLOOKUP(D56,Calculations!$C$712:$AK$854,2,FALSE),"") ->  | K56: =IF(Calculations!C733>"",Calculations!AK733,"") ->  | N56: =IF(Calculations!C733>"",Calculations!AI733,"") ->  | R56: =IF(D56>"",Calculations!Y733,"") ->  | V56: =IF(D56>"",Calculations!Z733,"") -> 
D57: =IF(Calculations!C734>"",Calculations!C734,"") ->  | I57: =IF(D57>"",VLOOKUP(D57,Calculations!$C$712:$AK$854,2,FALSE),"") ->  | K57: =IF(Calculations!C734>"",Calculations!AK734,"") ->  | N57: =IF(Calculations!C734>"",Calculations!AI734,"") ->  | R57: =IF(D57>"",Calculations!Y734,"") ->  | V57: =IF(D57>"",Calculations!Z734,"") -> 
D58: =IF(Calculations!C735>"",Calculations!C735,"") ->  | I58: =IF(D58>"",VLOOKUP(D58,Calculations!$C$712:$AK$854,2,FALSE),"") ->  | K58: =IF(Calculations!C735>"",Calculations!AK735,"") ->  | N58: =IF(Calculations!C735>"",Calculations!AI735,"") ->  | R58: =IF(D58>"",Calculations!Y735,"") ->  | V58: =IF(D58>"",Calculations!Z735,"") -> 
D59: =IF(Calculations!C736>"",Calculations!C736,"") ->  | I59: =IF(D59>"",VLOOKUP(D59,Calculations!$C$712:$AK$854,2,FALSE),"") ->  | K59: =IF(Calculations!C736>"",Calculations!AK736,"") ->  | N59: =IF(Calculations!C736>"",Calculations!AI736,"") ->  | R59: =IF(D59>"",Calculations!Y736,"") ->  | V59: =IF(D59>"",Calculations!Z736,"") -> 
D60: =IF(Calculations!C737>"",Calculations!C737,"") ->  | I60: =IF(D60>"",VLOOKUP(D60,Calculations!$C$712:$AK$854,2,FALSE),"") ->  | K60: =IF(Calculations!C737>"",Calculations!AK737,"") ->  | N60: =IF(Calculations!C737>"",Calculations!AI737,"") ->  | R60: =IF(D60>"",Calculations!Y737,"") ->  | V60: =IF(D60>"",Calculations!Z737,"") -> 
D61: =IF(Calculations!C738>"",Calculations!C738,"") ->  | I61: =IF(D61>"",VLOOKUP(D61,Calculations!$C$712:$AK$854,2,FALSE),"") ->  | K61: =IF(Calculations!C738>"",Calculations!AK738,"") ->  | N61: =IF(Calculations!C738>"",Calculations!AI738,"") ->  | R61: =IF(D61>"",Calculations!Y738,"") ->  | V61: =IF(D61>"",Calculations!Z738,"") -> 
D62: =IF(Calculations!C739>"",Calculations!C739,"") ->  | I62: =IF(D62>"",VLOOKUP(D62,Calculations!$C$712:$AK$854,2,FALSE),"") ->  | K62: =IF(Calculations!C739>"",Calculations!AK739,"") ->  | N62: =IF(Calculations!C739>"",Calculations!AI739,"") ->  | R62: =IF(D62>"",Calculations!Y739,"") ->  | V62: =IF(D62>"",Calculations!Z739,"") -> 
D63: =IF(Calculations!C740>"",Calculations!C740,"") ->  | I63: =IF(D63>"",VLOOKUP(D63,Calculations!$C$712:$AK$854,2,FALSE),"") ->  | K63: =IF(Calculations!C740>"",Calculations!AK740,"") ->  | N63: =IF(Calculations!C740>"",Calculations!AI740,"") ->  | R63: =IF(D63>"",Calculations!Y740,"") ->  | V63: =IF(D63>"",Calculations!Z740,"") -> 
D64: =IF(Calculations!C741>"",Calculations!C741,"") ->  | I64: =IF(D64>"",VLOOKUP(D64,Calculations!$C$712:$AK$854,2,FALSE),"") ->  | K64: =IF(Calculations!C741>"",Calculations!AK741,"") ->  | N64: =IF(Calculations!C741>"",Calculations!AI741,"") ->  | R64: =IF(D64>"",Calculations!Y741,"") ->  | V64: =IF(D64>"",Calculations!Z741,"") -> 
D65: =IF(Calculations!C742>"",Calculations!C742,"") ->  | I65: =IF(D65>"",VLOOKUP(D65,Calculations!$C$712:$AK$854,2,FALSE),"") ->  | K65: =IF(Calculations!C742>"",Calculations!AK742,"") ->  | N65: =IF(Calculations!C742>"",Calculations!AI742,"") ->  | R65: =IF(D65>"",Calculations!Y742,"") ->  | V65: =IF(D65>"",Calculations!Z742,"") -> 
D66: =IF(Calculations!C743>"",Calculations!C743,"") ->  | I66: =IF(D66>"",VLOOKUP(D66,Calculations!$C$712:$AK$854,2,FALSE),"") ->  | K66: =IF(Calculations!C743>"",Calculations!AK743,"") ->  | N66: =IF(Calculations!C743>"",Calculations!AI743,"") ->  | R66: =IF(D66>"",Calculations!Y743,"") ->  | V66: =IF(D66>"",Calculations!Z743,"") -> 
B70: 3.1

Sheet Calculations (hidden)
B2: Legend: | Z2: <asset type> | AA2: life range | AC2: AVG life range | AD2: age: | AE2: Price($) | AF2: years left | AG2: Funded Portion | AH2: Interest | AI2: Inflation | AJ2: asset | AK2: year | AL2: price | AN2: est price | AO2: interest rate | AP2: inflation | AQ2: Rate % | AR2: funded portion | AS2: estimated municipality cost | AT2: municipality cost | AU2: avg life | AV2: age | AW2: years left | AX2: pv given data | AY2: annual given data | AZ2: pv est life | BA2: AC est life | BB2: pvest cost | BC2: annual est price | BD2: pv est both | BE2: AC est both | BH2: pv given data | BI2: annual given data | BJ2: pv est life | BK2: AC est life | BL2: pv est cost | BM2: annual est price | BN2: pv est both | BO2: AC est both | BP2: if statement for table: | BQ2: funded annual cost | BR2: If statement for Price
B3: X | C3: Indicates cells that can be modified by Government of Newfoundland | Z3: Choose Reservoir and Dams type: | AG3: 0 | AH3: 0 | AI3: 0 | AQ3: =AP3-AO3 -> 0 | AR3: 0.9 | AS3: =AN3*(1-AR3) -> 0 | AT3: =AL3*(1-AR3) -> 0 | AU3: =VLOOKUP(AJ3,'3.1) Infrastructure Replacement'!$AE$74:$AK$109,4,FALSE) ->  | AV3: =DATEDIF(AK3,NOW(),"Y") -> 122 | AW3: =IF(AU3*1<AV3,"past due",AU3*1-AV3) ->  | AX3: =(AL3*((1+AQ3)^(-AW3))) ->  | AY3: =IF(AQ3=0%,(AX3/AW3),((AX3*AQ3)*((1+AQ3)^(AW3)))/(((1+AQ3)^(AW3))-1)) ->  | AZ3: =(AL3/((1+AQ3)^(AM3))) -> 0 | BA3: =IF(AQ3=0%,(AZ3/AM3),((AZ3*AQ3)*((1+AQ3)^(AM3)))/(((1+AQ3)^(AM3))-1)) ->  | BB3: =(AN3/((1+AQ3)^(AW3))) ->  | BC3: =IF(AQ3=0%,(BB3/AW3),(BB3*((AQ3*((1+AQ3)^(AW3)))/(((1+AQ3)^(AW3))-1)))) ->  | BD3: =AN3/((1+AQ3)^(AM3)) -> 0 | BE3: =IF(AQ3=0%,(BD3/AM3),(BD3*((AQ3*((1+AQ3)^(AM3)))/(((1+AQ3)^(AM3))-1)))) ->  | BF3: =IF(AND(AN3>0,AM3>0),BE3,IF(AN3>0,BC3,IF(AM3>0,BA3,AY3))) ->  | BG3: =IF(AND(AN3>0,AM3>0),BO3,IF(AND(AM3=0,AN3>0),BM3,IF(AND(AN3=0,AM3>0),BK3,BI3))) ->  | BH3: =AT3*((1+AQ3)^(-AW3)) ->  | BI3: =IF(AQ3=0%,(BH3/AW3),((BH3*AQ3)*((1+AQ3)^(AW3)))/(((1+AQ3)^(AW3))-1)) ->  | BJ3: =AT3/((1+AQ3)^(AM3)) -> 0 | BK3: =IF(AQ3=0%,(BJ3/AM3),((BJ3*AQ3)*((1+AQ3)^(AM3)))/(((1+AQ3)^(AM3))-1)) ->  | BL3: =AS3/((1+AQ3)^(AW3)) ->  | BM3: =IF(AQ3=0%,(BL3/AW3),(BL3*((AQ3*((1+AQ3)^(AW3)))/(((1+AQ3)^(AW3))-1)))) ->  | BN3: =AS3/((1+AQ3)^(AM3)) -> 0 | BO3: =IF(AQ3=0%,(BN3/AM3),(BN3*((AQ3*((1+AQ3)^(AM3)))/(((1+AQ3)^(AM3))-1)))) ->  | BP3: =IF(AN3>0,AS3,IF(AN3=0,AT3)) -> 0 | BQ3: =BF3-BG3 ->  | BR3: =IF(#REF!=0,AL3,IF(#REF!>0,AN3)) -> 
C4: Indicates cells that are linked from other spreadsheets (provided separately); note, links have been removed in this version of the file. | Z4: Concrete Reservoir and Dams | AA4: 50 | AB4: 100 | AC4: =AVERAGE(AA4,AB4) -> 75 | AD4: =DATEDIF($I$9,NOW(),"Y") -> 122 | AE4: 1000000 | AF4: =IF(AC4*1<$I$11,"past due",AC4*1-$I$11) -> 75 | AG4: 0.05 | AH4: 0.005 | AI4: 0.005 | AQ4: 0 | AR4: 0.65 | AS4: 0 | AT4: 0 | AU4: =VLOOKUP(AJ4,'3.1) Infrastructure Replacement'!$AE$74:$AK$109,4,FALSE) ->  | AV4: 122 | AZ4: 0 | BD4: 0 | BJ4: 0 | BN4: 0 | BP4: 0 | BR4: =IF(#REF!=0,AL4,IF(#REF!>0,AN4)) -> 
Z5: Steel Reservoir and Dams | AA5: 30 | AB5: 80 | AC5: =AVERAGE(AA5,AB5) -> 55 | AD5: 122 | AE5: 1000000 | AF5: =IF(AC5*1<$I$11,"past due",AC5*1-$I$11) -> 55 | AG5: 0.1 | AH5: 0.01 | AI5: 0.01 | AQ5: 0 | AR5: 0 | AS5: 0 | AT5: 0 | AU5: =VLOOKUP(AJ5,'3.1) Infrastructure Replacement'!$AE$74:$AK$109,4,FALSE) ->  | AV5: 122 | AZ5: 0 | BD5: 0 | BJ5: 0 | BN5: 0 | BP5: 0 | BR5: =IF(#REF!=0,AL5,IF(#REF!>0,AN5)) -> 
Z6: Wood Reservoir and Dams | AA6: 15 | AB6: 30 | AC6: =AVERAGE(AA6,AB6) -> 22.5 | AD6: 122 | AE6: 1000000 | AF6: =IF(AC6*1<$I$11,"past due",AC6*1-$I$11) -> 22.5 | AG6: 0.15 | AH6: 0.015 | AI6: 0.015 | AQ6: 0 | AR6: 0 | AS6: 0 | AT6: 0 | AU6: =VLOOKUP(AJ6,'3.1) Infrastructure Replacement'!$AE$74:$AK$109,4,FALSE) ->  | AV6: 122 | AZ6: 0 | BD6: 0 | BJ6: 0 | BN6: 0 | BP6: 0 | BR6: =IF(#REF!=0,AL6,IF(#REF!>0,AN6)) -> 
B7: PART 1 EXISTING OPERATIONS: | Z7: Earthen Reservoir and Dams | AA7: 20 | AB7: 50 | AC7: =AVERAGE(AA7,AB7) -> 35 | AD7: 122 | AE7: 1000000 | AF7: =IF(AC7*1<$I$11,"past due",AC7*1-$I$11) -> 35 | AG7: 0.2 | AH7: 0.02 | AI7: 0.02 | AQ7: 0 | AR7: 0.9 | AS7: 0 | AT7: 0 | AU7: =VLOOKUP(AJ7,'3.1) Infrastructure Replacement'!$AE$74:$AK$109,4,FALSE) ->  | AV7: 122 | AZ7: 0 | BD7: 0 | BJ7: 0 | BN7: 0 | BP7: 0 | BR7: =IF(#REF!=0,AL7,IF(#REF!>0,AN7)) -> 
AD8: 122 | AG8: 0.25 | AH8: 0.025 | AI8: 0.025 | AQ8: 0 | AR8: 0.9 | AS8: 0 | AT8: 0 | AU8: =VLOOKUP(AJ8,'3.1) Infrastructure Replacement'!$AE$74:$AK$109,4,FALSE) ->  | AV8: 122 | AZ8: 0 | BJ8: 0 | BN8: 0 | BP8: 0 | BR8: =IF(#REF!=0,AL8,IF(#REF!>0,AN8)) -> 
Z9: Intake (no impoundment) | AA9: 20 | AB9: 50 | AC9: =AVERAGE(AA9,AB9) -> 35 | AD9: 122 | AE9: 100000 | AF9: =IF(AC9*1<$I$11,"past due",AC9*1-$I$11) -> 35 | AG9: 0.3 | AH9: 0.03 | AI9: 0.03 | AQ9: 0 | AR9: 0.9 | AS9: 0 | AT9: 0 | AU9: =VLOOKUP(AJ9,'3.1) Infrastructure Replacement'!$AE$74:$AK$109,4,FALSE) ->  | AV9: 122 | AZ9: 0 | BD9: =AN9/((1+AQ9)^(AM9)) -> 0 | BJ9: 0 | BN9: 0 | BP9: 0 | BR9: =IF(#REF!=0,AL9,IF(#REF!>0,AN9)) -> 
C10: PAGE 1 - Community Data | Z10: Growndwater Wells | AA10: 15 | AB10: 35 | AC10: =AVERAGE(AA10,AB10) -> 25 | AD10: 122 | AE10: 100000 | AF10: =IF(AC10*1<$I$11,"past due",AC10*1-$I$11) -> 25 | AG10: 0.35 | AH10: 0.035 | AI10: 0.035 | AQ10: 0 | AR10: 0.9 | AS10: 0 | AT10: 0 | AU10: =VLOOKUP(AJ10,'3.1) Infrastructure Replacement'!$AE$74:$AK$109,4,FALSE) ->  | AV10: 122 | AZ10: 0 | BD10: 0 | BJ10: 0 | BN10: 0 | BP10: 0 | BR10: =IF(#REF!=0,AL10,IF(#REF!>0,AN10)) -> 
Z11: Water Treatment Plants-Concrete Structures | AA11: 20 | AB11: 50 | AC11: =AVERAGE(AA11,AB11) -> 35 | AD11: 122 | AE11: 500000 | AF11: =IF(AC11*1<$I$11,"past due",AC11*1-$I$11) -> 35 | AG11: 0.4 | AH11: 0.04 | AI11: 0.04 | AQ11: 0 | AR11: 13.1 | AS11: 0 | AT11: 0 | AU11: =VLOOKUP(AJ11,'3.1) Infrastructure Replacement'!$AE$74:$AK$109,4,FALSE) ->  | AV11: 122 | AZ11: 0 | BD11: 0 | BJ11: 0 | BN11: 0 | BP11: 0 | BR11: =IF(#REF!=0,AL11,IF(#REF!>0,AN11)) -> 
Z12: Water Treatment Plants-Mechanicsl and Electrical | AA12: 15 | AB12: 25 | AC12: =AVERAGE(AA12,AB12) -> 20 | AD12: 122 | AE12: 500000 | AF12: =IF(AC12*1<$I$11,"past due",AC12*1-$I$11) -> 20 | AG12: 0.45 | AH12: 0.045 | AI12: 0.045 | AQ12: 0 | AR12: 14.1 | AS12: 0 | AT12: 0 | AU12: =VLOOKUP(AJ12,'3.1) Infrastructure Replacement'!$AE$74:$AK$109,4,FALSE) ->  | AV12: 122 | AZ12: 0 | BD12: 0 | BJ12: 0 | BN12: 0 | BP12: 0 | BR12: =IF(#REF!=0,AL12,IF(#REF!>0,AN12)) -> 
C13: Community: | D13: =Title!I15 -> 0 | Z13: Chlorination Equipment | AA13: 10 | AB13: 15 | AC13: =AVERAGE(AA13,AB13) -> 12.5 | AD13: 122 | AE13: 50000 | AF13: =IF(AC13*1<$I$11,"past due",AC13*1-$I$11) -> 12.5 | AG13: 0.5 | AH13: 0.05 | AI13: 0.05 | AQ13: 0 | AR13: 15.1 | AS13: 0 | AT13: 0 | AU13: =VLOOKUP(AJ13,'3.1) Infrastructure Replacement'!$AE$74:$AK$109,4,FALSE) ->  | AV13: 122 | AZ13: 0 | BD13: 0 | BJ13: 0 | BN13: 0 | BP13: 0 | BR13: =IF(#REF!=0,AL13,IF(#REF!>0,AN13)) -> 
C14: Water Supply System: | D14: ='1.1) Community Data'!I6 -> 0 | AG14: 0.55 | AQ14: 0 | AR14: 16.1 | AS14: 0 | AT14: 0 | AU14: =VLOOKUP(AJ14,'3.1) Infrastructure Replacement'!$AE$74:$AK$109,4,FALSE) ->  | AV14: 122 | AZ14: 0 | BD14: 0 | BJ14: 0 | BN14: 0 | BP14: 0 | BR14: =IF(#REF!=0,AL14,IF(#REF!>0,AN14)) -> 
C15: Month: | D15: =Title!I21 -> Month | Z15: Choose Trunk Mains and Distribution Mains Type: | AD15: =DATEDIF($I$9,NOW(),"Y") -> 122 | AG15: 0.6 | AQ15: 0 | AR15: 17.1 | AS15: 0 | AT15: 0 | AU15: =VLOOKUP(AJ15,'3.1) Infrastructure Replacement'!$AE$74:$AK$109,4,FALSE) ->  | AV15: 122 | AZ15: 0 | BD15: 0 | BJ15: 0 | BN15: 0 | BP15: 0 | BR15: =IF(#REF!=0,AL15,IF(#REF!>0,AN15)) -> 
C16: Day: | D16: =Title!L21 -> Day | Z16: Cast Iron Trunk Mains and Distribution Mains | AA16: 25 | AB16: 100 | AC16: =AVERAGE(AA16,AB16) -> 62.5 | AD16: 122 | AE16: 1 | AF16: =IF(AC16*1<$I$11,"past due",AC16*1-$I$11) -> 62.5 | AG16: 0.65 | AQ16: 0 | AR16: 18.1 | AS16: 0 | AT16: 0 | AU16: =VLOOKUP(AJ16,'3.1) Infrastructure Replacement'!$AE$74:$AK$109,4,FALSE) ->  | AV16: 122 | AZ16: 0 | BD16: 0 | BJ16: 0 | BN16: 0 | BP16: 0 | BR16: =IF(#REF!=0,AL16,IF(#REF!>0,AN16)) -> 
C17: Year: | D17: =Title!Q21 -> 0 | Z17: Ductile Iron Trunk Mains and Distribution Mains | AA17: 75 | AB17: 100 | AC17: 87.5 | AD17: 122 | AE17: 1 | AF17: 87.5 | AG17: 0.7 | AQ17: 0 | AR17: 19.1 | AS17: 0 | AT17: 0 | AU17: =VLOOKUP(AJ17,'3.1) Infrastructure Replacement'!$AE$74:$AK$109,4,FALSE) ->  | AV17: 122 | AZ17: 0 | BD17: 0 | BJ17: 0 | BN17: 0 | BP17: 0 | BR17: =IF(#REF!=0,AL17,IF(#REF!>0,AN17)) -> 
Z18: Steel Trunk Mains and Distribution Mains | AA18: 50 | AB18: 100 | AC18: 75 | AD18: 122 | AE18: 1 | AF18: 75 | AG18: 0.75 | AQ18: 0 | AR18: 20.1 | AS18: 0 | AT18: 0 | AU18: =VLOOKUP(AJ18,'3.1) Infrastructure Replacement'!$AE$74:$AK$109,4,FALSE) ->  | AV18: 122 | AZ18: 0 | BD18: 0 | BJ18: 0 | BN18: 0 | BP18: 0 | BR18: =IF(#REF!=0,AL18,IF(#REF!>0,AN18)) -> 
C19: Type of Water Supply: | D19: ='1.1) Community Data'!I7 -> <Type of Supply> | E19: =IF(D19="surface water",1,0) -> 0 | F19: (1= surface water, 0 = groundwater) | Z19: Concrete Trunk Mains and Distribution Mains | AA19: 75 | AB19: 100 | AC19: 87.5 | AD19: 122 | AE19: 1 | AF19: 87.5 | AG19: 0.8 | AQ19: 0 | AR19: 21.1 | AS19: 0 | AT19: 0 | AU19: =VLOOKUP(AJ19,'3.1) Infrastructure Replacement'!$AE$74:$AK$109,4,FALSE) ->  | AV19: 122 | AZ19: 0 | BD19: 0 | BJ19: 0 | BN19: 0 | BP19: 0 | BR19: =IF(#REF!=0,AL19,IF(#REF!>0,AN19)) -> 
C20: Annual O&M Inflation Rate: | D20: 0.015 | Z20: Asbestos Cement Trunk Mains and Distribution Mains | AA20: 60 | AB20: 100 | AC20: 80 | AD20: 122 | AE20: 1 | AF20: 80 | AG20: 0.85 | AQ20: 0 | AR20: 22.1 | AS20: 0 | AT20: 0 | AU20: =VLOOKUP(AJ20,'3.1) Infrastructure Replacement'!$AE$74:$AK$109,4,FALSE) ->  | AV20: 122 | AZ20: 0 | BD20: 0 | BJ20: 0 | BN20: 0 | BP20: 0 | BR20: =IF(#REF!=0,AL20,IF(#REF!>0,AN20)) -> 
C21: Annual Capital Inflation Rate: | D21: 0.03 | Z21: PVC Trunk Mains and Distribution Mains | AA21: 25 | AB21: 100 | AC21: 62.5 | AD21: 122 | AE21: 1 | AF21: 62.5 | AG21: 0.9 | AQ21: 0 | AR21: 23.1 | AS21: 0 | AT21: 0 | AU21: =VLOOKUP(AJ21,'3.1) Infrastructure Replacement'!$AE$74:$AK$109,4,FALSE) ->  | AV21: 122 | AZ21: 0 | BD21: 0 | BJ21: 0 | BN21: 0 | BP21: 0 | BR21: =IF(#REF!=0,AL21,IF(#REF!>0,AN21)) -> 
C22: Base Year for O&M & Capital Cost Data: | D22: 2017 | Z22: HDPE Trunk Mains and Distribution Mains | AA22: 70 | AB22: 100 | AC22: 85 | AD22: 122 | AE22: 1 | AF22: =IF(AC16*1<$I$11,"past due",AC16*1-$I$11) -> 62.5 | AQ22: 0 | AR22: 24.1 | AS22: 0 | AT22: 0 | AU22: =VLOOKUP(AJ22,'3.1) Infrastructure Replacement'!$AE$74:$AK$109,4,FALSE) ->  | AV22: 122 | AZ22: 0 | BD22: 0 | BJ22: 0 | BN22: 0 | BP22: 0 | BR22: =IF(#REF!=0,AL22,IF(#REF!>0,AN22)) -> 
C23: O&M Inflation Factor: | D23: =(1+D20)^(D17-D22) -> 9.07805445e-14 | AD23: 122 | AQ23: 0 | AR23: 25.1 | AS23: 0 | AT23: 0 | AU23: =VLOOKUP(AJ23,'3.1) Infrastructure Replacement'!$AE$74:$AK$109,4,FALSE) ->  | AV23: 122 | AZ23: 0 | BD23: 0 | BJ23: 0 | BN23: 0 | BP23: 0 | BR23: =IF(#REF!=0,AL23,IF(#REF!>0,AN23)) -> 
C24: Capital Inflation Factor: | D24: =(1+D21)^(D17-D22) -> 1.280317759e-26 | Z24: Water Pumping Station-Concrete Structures | AA24: 50 | AB24: 70 | AC24: =AVERAGE(AA24,AB24) -> 60 | AD24: 122 | AE24: 100000 | AF24: =IF(AC24*1<$I$11,"past due",AC24*1-$I$11) -> 60 | AQ24: 0 | AR24: 26.1 | AS24: 0 | AT24: 0 | AU24: =VLOOKUP(AJ24,'3.1) Infrastructure Replacement'!$AE$74:$AK$109,4,FALSE) ->  | AV24: 122 | AZ24: 0 | BD24: 0 | BJ24: 0 | BN24: 0 | BP24: 0 | BR24: =IF(#REF!=0,AL24,IF(#REF!>0,AN24)) -> 
Z25: Water Pumping Station-Mechanical and Electrical | AA25: 10 | AB25: 25 | AC25: =AVERAGE(AA25,AB25) -> 17.5 | AD25: 122 | AE25: 100000 | AF25: =IF(AC25*1<$I$11,"past due",AC25*1-$I$11) -> 17.5 | AQ25: 0 | AR25: 27.1 | AS25: 0 | AT25: 0 | AU25: =VLOOKUP(AJ25,'3.1) Infrastructure Replacement'!$AE$74:$AK$109,4,FALSE) ->  | AV25: 122 | AZ25: 0 | BD25: 0 | BJ25: 0 | BN25: 0 | BP25: 0 | BR25: =IF(#REF!=0,AL25,IF(#REF!>0,AN25)) -> 
AQ26: 0 | AR26: 28.1 | AS26: 0 | AT26: 0 | AU26: =VLOOKUP(AJ26,'3.1) Infrastructure Replacement'!$AE$74:$AK$109,4,FALSE) ->  | AV26: 122 | AZ26: 0 | BD26: 0 | BJ26: 0 | BN26: 0 | BP26: 0 | BR26: =IF(#REF!=0,AL26,IF(#REF!>0,AN26)) -> 
C27: Geographic Region Option # | D27: Geographic Region | E27: Capital Cost Factor | F27: O&M Cost Factor | Z27: Choose Storage Tank Type: | AD27: =DATEDIF($I$9,NOW(),"Y") -> 122 | AQ27: 0 | AR27: 29.1 | AS27: 0 | AT27: 0 | AU27: =VLOOKUP(AJ27,'3.1) Infrastructure Replacement'!$AE$74:$AK$109,4,FALSE) ->  | AV27: 122 | AZ27: 0 | BD27: 0 | BJ27: 0 | BN27: 0 | BP27: 0 | BR27: =IF(#REF!=0,AL27,IF(#REF!>0,AN27)) -> 
C28: 1 | E28: 1 | F28: 1 | Z28: Concrete Storage Tank | AA28: 50 | AB28: 80 | AC28: =AVERAGE(AA28,AB28) -> 65 | AD28: 122 | AE28: 1000000 | AF28: =IF(AC28*1<$I$11,"past due",AC28*1-$I$11) -> 65 | AQ28: 0 | AR28: 30.1 | AS28: 0 | AT28: 0 | AU28: =VLOOKUP(AJ28,'3.1) Infrastructure Replacement'!$AE$74:$AK$109,4,FALSE) ->  | AV28: 122 | AZ28: 0 | BD28: 0 | BJ28: 0 | BN28: 0 | BP28: 0 | BR28: =IF(#REF!=0,AL28,IF(#REF!>0,AN28)) -> 
C29: 2 | D29: Avalon (St. Johns): 1.0 | E29: 1 | F29: 1 | Z29: Wood Storage Tank | AA29: 50 | AB29: 80 | AC29: =AVERAGE(AA29,AB29) -> 65 | AD29: 122 | AE29: 1000000 | AF29: =IF(AC29*1<$I$11,"past due",AC29*1-$I$11) -> 65 | AQ29: 0 | AR29: 31.1 | AS29: 0 | AT29: 0 | AU29: =VLOOKUP(AJ29,'3.1) Infrastructure Replacement'!$AE$74:$AK$109,4,FALSE) ->  | AV29: 122 | AZ29: 0 | BD29: 0 | BJ29: 0 | BN29: 0 | BP29: 0 | BR29: =IF(#REF!=0,AL29,IF(#REF!>0,AN29)) -> 
C30: 3 | D30: Eastern (Clarenville): 1.05 | E30: 1.05 | F30: 1.05 | Z30: Metal Storage Tank | AA30: 50 | AB30: 80 | AC30: =AVERAGE(AA30,AB30) -> 65 | AD30: 122 | AE30: 1000000 | AF30: =IF(AC30*1<$I$11,"past due",AC30*1-$I$11) -> 65 | AQ30: 0 | AR30: 32.1 | AS30: 0 | AT30: 0 | AU30: =VLOOKUP(AJ30,'3.1) Infrastructure Replacement'!$AE$74:$AK$109,4,FALSE) ->  | AV30: 122 | AZ30: 0 | BD30: 0 | BJ30: 0 | BN30: 0 | BP30: 0 | BR30: =IF(#REF!=0,AL30,IF(#REF!>0,AN30)) -> 
C31: 4 | D31: Central (Gander): 1.05 | E31: 1.05 | F31: 1.05 | Z31: Fibreglas Storage Tank | AA31: 50 | AB31: 80 | AC31: =AVERAGE(AA31,AB31) -> 65 | AD31: 122 | AE31: 1000000 | AF31: =IF(AC31*1<$I$11,"past due",AC31*1-$I$11) -> 65 | AQ31: 0 | AR31: 33.1 | AS31: 0 | AT31: 0 | AU31: =VLOOKUP(AJ31,'3.1) Infrastructure Replacement'!$AE$74:$AK$109,4,FALSE) ->  | AV31: 122 | AZ31: 0 | BD31: 0 | BJ31: 0 | BN31: 0 | BP31: 0 | BR31: =IF(#REF!=0,AL31,IF(#REF!>0,AN31)) -> 
C32: 5 | D32: Central West (Corner Brook): 1.05 | E32: 1.05 | F32: 1.05 | AD32: 122 | AQ32: 0 | AR32: 34.1 | AS32: 0 | AT32: 0 | AU32: =VLOOKUP(AJ32,'3.1) Infrastructure Replacement'!$AE$74:$AK$109,4,FALSE) ->  | AV32: 122 | AZ32: 0 | BD32: 0 | BJ32: 0 | BN32: 0 | BP32: 0 | BR32: =IF(#REF!=0,AL32,IF(#REF!>0,AN32)) -> 
C33: 6 | D33: North West (St. Anthony): 1.1 | E33: 1.1 | F33: 1.1 | Z33: Electrical Systems | AA33: 7 | AB33: 10 | AC33: =AVERAGE(AA33,AB33) -> 8.5 | AD33: 122 | AE33: 1 | AF33: =IF(AC33*1<$I$11,"past due",AC33*1-$I$11) -> 8.5 | AQ33: 0 | AR33: 35.1 | AS33: 0 | AT33: 0 | AU33: =VLOOKUP(AJ33,'3.1) Infrastructure Replacement'!$AE$74:$AK$109,4,FALSE) ->  | AV33: 122 | AZ33: 0 | BD33: 0 | BJ33: 0 | BN33: 0 | BP33: 0 | BR33: =IF(#REF!=0,AL33,IF(#REF!>0,AN33)) -> 
C34: 7 | D34: South West (Port Aux Basques): 1.3 | E34: 1.3 | F34: 1.3 | Z34: Valves and Backflow Prevention Devices | AA34: 35 | AB34: 40 | AC34: 37.5 | AD34: 122 | AE34: 10000 | AF34: 37.5 | AQ34: 0 | AR34: 36.1 | AS34: 0 | AT34: 0 | AU34: =VLOOKUP(AJ34,'3.1) Infrastructure Replacement'!$AE$74:$AK$109,4,FALSE) ->  | AV34: 122 | AZ34: 0 | BD34: 0 | BJ34: 0 | BN34: 0 | BP34: 0 | BR34: =IF(#REF!=0,AL34,IF(#REF!>0,AN34)) -> 
C35: 8 | D35: Labrador Central (Happy Valley-Goose Bay): 1.7 | E35: 1.7 | F35: 1.7 | Z35: Meters | AA35: 10 | AB35: 15 | AC35: 12.5 | AD35: 122 | AE35: 1 | AF35: 12.5 | AQ35: 0 | AR35: 37.1 | AS35: 0 | AT35: 0 | AU35: =VLOOKUP(AJ35,'3.1) Infrastructure Replacement'!$AE$74:$AK$109,4,FALSE) ->  | AV35: 122 | AZ35: 0 | BD35: 0 | BJ35: 0 | BN35: 0 | BP35: 0 | BR35: =IF(#REF!=0,AL35,IF(#REF!>0,AN35)) -> 
C36: 9 | D36: Labrador West (Wabush): 1.7 | E36: 1.7 | F36: 1.7 | Z36: Hydrants | AA36: 40 | AB36: 60 | AC36: 50 | AD36: 122 | AE36: 5000 | AF36: 50 | AQ36: 0 | AR36: 38.1 | AS36: 0 | AT36: 0 | AU36: =VLOOKUP(AJ36,'3.1) Infrastructure Replacement'!$AE$74:$AK$109,4,FALSE) ->  | AV36: 122 | AZ36: 0 | BD36: 0 | BJ36: 0 | BN36: 0 | BP36: 0 | BR36: =IF(#REF!=0,AL36,IF(#REF!>0,AN36)) -> 
C37: 10 | D37: Labrador (North): 2.0 | E37: 2 | F37: 2 | Z37: Lab and Monitoring Equipment | AA37: 5 | AB37: 7 | AC37: 6 | AD37: 122 | AE37: 1 | AF37: 6 | AQ37: 0 | AR37: 39.1 | AS37: 0 | AT37: 0 | AU37: =VLOOKUP(AJ37,'3.1) Infrastructure Replacement'!$AE$74:$AK$109,4,FALSE) ->  | AV37: 122 | AZ37: 0 | BD37: 0 | BJ37: 0 | BN37: 0 | BP37: 0 | BR37: =IF(#REF!=0,AL37,IF(#REF!>0,AN37)) -> 
Z38: Buildings | AA38: 30 | AB38: 60 | AC38: 45 | AD38: 122 | AE38: 1 | AF38: 45 | AQ38: 0 | AR38: 40.1 | AS38: 0 | AT38: 0 | AU38: =VLOOKUP(AJ38,'3.1) Infrastructure Replacement'!$AE$74:$AK$109,4,FALSE) ->  | AV38: 122 | AZ38: 0 | BD38: 0 | BJ38: 0 | BN38: 0 | BP38: 0 | BR38: =IF(#REF!=0,AL38,IF(#REF!>0,AN38)) -> 
C39: Geographic Region Option # | D39: 1 | AQ39: 0 | AR39: 41.1 | AS39: 0 | AT39: 0 | AU39: =VLOOKUP(AJ39,'3.1) Infrastructure Replacement'!$AE$74:$AK$109,4,FALSE) ->  | AV39: 122 | AZ39: 0 | BD39: 0 | BJ39: 0 | BN39: 0 | BP39: 0 | BR39: =IF(#REF!=0,AL39,IF(#REF!>0,AN39)) -> 
C40: Geographic Region: | D40: =VLOOKUP(D39,C28:F37,2,FALSE) -> 0 | AQ40: 0 | AR40: 42.1 | AS40: 0 | AT40: 0 | AU40: =VLOOKUP(AJ40,'3.1) Infrastructure Replacement'!$AE$74:$AK$109,4,FALSE) ->  | AV40: 122 | AZ40: 0 | BD40: 0 | BJ40: 0 | BN40: 0 | BP40: 0 | BR40: =IF(#REF!=0,AL40,IF(#REF!>0,AN40)) -> 
C41: Geographic Region Capital Cost Factor: | D41: =VLOOKUP(D39,C28:F37,3,FALSE) -> 1 | AQ41: 0 | AR41: 43.1 | AS41: 0 | AT41: 0 | AU41: =VLOOKUP(AJ41,'3.1) Infrastructure Replacement'!$AE$74:$AK$109,4,FALSE) ->  | AV41: 122 | AZ41: 0 | BD41: 0 | BJ41: 0 | BN41: 0 | BP41: 0 | BR41: =IF(#REF!=0,AL41,IF(#REF!>0,AN41)) -> 
C42: Geographic Region O&M Cost Factor: | D42: =VLOOKUP(D39,C28:F37,4,FALSE) -> 1 | AQ42: 0 | AR42: 44.1 | AS42: 0 | AT42: 0 | AU42: =VLOOKUP(AJ42,'3.1) Infrastructure Replacement'!$AE$74:$AK$109,4,FALSE) ->  | AV42: 122 | AZ42: 0 | BD42: 0 | BJ42: 0 | BN42: 0 | BP42: 0 | BR42: =IF(#REF!=0,AL42,IF(#REF!>0,AN42)) -> 
AQ43: 0 | AR43: 45.1 | AS43: 0 | AT43: 0 | AU43: =VLOOKUP(AJ43,'3.1) Infrastructure Replacement'!$AE$74:$AK$109,4,FALSE) ->  | AV43: 122 | AZ43: 0 | BD43: 0 | BJ43: 0 | BN43: 0 | BP43: 0 | BR43: =IF(#REF!=0,AL43,IF(#REF!>0,AN43)) -> 
AQ44: 0 | AR44: 46.1 | AS44: 0 | AT44: 0 | AU44: =VLOOKUP(AJ44,'3.1) Infrastructure Replacement'!$AE$74:$AK$109,4,FALSE) ->  | AV44: 122 | AZ44: 0 | BD44: 0 | BJ44: 0 | BN44: 0 | BP44: 0 | BR44: =IF(#REF!=0,AL44,IF(#REF!>0,AN44)) -> 
C45: Existing System Flows: | AQ45: 0 | AR45: 47.1 | AS45: 0 | AT45: 0 | AU45: =VLOOKUP(AJ45,'3.1) Infrastructure Replacement'!$AE$74:$AK$109,4,FALSE) ->  | AV45: 122 | AZ45: 0 | BD45: 0 | BJ45: 0 | BN45: 0 | BP45: 0 | BR45: =IF(#REF!=0,AL45,IF(#REF!>0,AN45)) -> 
AQ46: 0 | AR46: 48.1 | AS46: 0 | AT46: 0 | AU46: =VLOOKUP(AJ46,'3.1) Infrastructure Replacement'!$AE$74:$AK$109,4,FALSE) ->  | AV46: 122 | AZ46: 0 | BD46: 0 | BJ46: 0 | BN46: 0 | BP46: 0 | BR46: =IF(#REF!=0,AL46,IF(#REF!>0,AN46)) -> 
C47: Water System Population: | D47: ='1.1) Community Data'!Q11:Q11 -> 0 | AQ47: 0 | AR47: 49.1 | AS47: 0 | AT47: 0 | AU47: =VLOOKUP(AJ47,'3.1) Infrastructure Replacement'!$AE$74:$AK$109,4,FALSE) ->  | AV47: 122 | AZ47: 0 | BD47: 0 | BJ47: 0 | BN47: 0 | BP47: 0 | BR47: =IF(#REF!=0,AL47,IF(#REF!>0,AN47)) -> 
AQ48: 0 | AR48: 50.1 | AS48: 0 | AT48: 0 | AU48: =VLOOKUP(AJ48,'3.1) Infrastructure Replacement'!$AE$74:$AK$109,4,FALSE) ->  | AV48: 122 | AZ48: 0 | BD48: 0 | BJ48: 0 | BN48: 0 | BP48: 0 | BR48: =IF(#REF!=0,AL48,IF(#REF!>0,AN48)) -> 
C49: User Entered Flow Data (if Available): | AQ49: 0 | AR49: 51.1 | AS49: 0 | AT49: 0 | AU49: =VLOOKUP(AJ49,'3.1) Infrastructure Replacement'!$AE$74:$AK$109,4,FALSE) ->  | AV49: 122 | AZ49: 0 | BD49: 0 | BJ49: 0 | BN49: 0 | BP49: 0 | BR49: =IF(#REF!=0,AL49,IF(#REF!>0,AN49)) -> 
C50: Parameter | D50: User Entered Flow Value | E50: User Entered Flow Unit | F50: Conversion Factor | G50: Flow By User (m3/d) | AQ50: 0 | AR50: 52.1 | AS50: 0 | AT50: 0 | AU50: =VLOOKUP(AJ50,'3.1) Infrastructure Replacement'!$AE$74:$AK$109,4,FALSE) ->  | AV50: 122 | AZ50: 0 | BD50: 0 | BJ50: 0 | BN50: 0 | BP50: 0 | BR50: =IF(#REF!=0,AL50,IF(#REF!>0,AN50)) -> 
C51: User Entered Average Flow - Season 1 | D51: ='1.1) Community Data'!H18 -> 0 | E51: ='1.1) Community Data'!I18 -> m3/d | F51: =IF(E51="<Units>",0,VLOOKUP(E51,'Table Inputs'!$T$4:$U$6,2,FALSE)) -> 1 | G51: =D51*F51 -> 0 | AQ51: 0 | AR51: 53.1 | AS51: 0 | AT51: 0 | AU51: =VLOOKUP(AJ51,'3.1) Infrastructure Replacement'!$AE$74:$AK$109,4,FALSE) ->  | AV51: 122 | AZ51: 0 | BD51: 0 | BJ51: 0 | BN51: 0 | BP51: 0 | BR51: =IF(#REF!=0,AL51,IF(#REF!>0,AN51)) -> 
C52: User Entered Maximum Day Flow - Season 1 | D52: ='1.1) Community Data'!H19 -> 0 | E52: ='1.1) Community Data'!I19 -> <Units> | F52: =IF(E52="<Units>",0,VLOOKUP(E52,'Table Inputs'!$T$4:$U$6,2,FALSE)) -> 0 | G52: =D52*F52 -> 0 | AQ52: 0 | AR52: 54.1 | AS52: 0 | AT52: 0 | AU52: =VLOOKUP(AJ52,'3.1) Infrastructure Replacement'!$AE$74:$AK$109,4,FALSE) ->  | AV52: 122 | AZ52: 0 | BD52: 0 | BJ52: 0 | BN52: 0 | BP52: 0 | BR52: =IF(#REF!=0,AL52,IF(#REF!>0,AN52)) -> 
C53: User Entered Peak Hour Flow - Season 1 | D53: ='1.1) Community Data'!H20 -> 0 | E53: ='1.1) Community Data'!I20 -> <Units> | F53: =IF(E53="<Units>",0,VLOOKUP(E53,'Table Inputs'!$T$4:$U$6,2,FALSE)) -> 0 | G53: =D53*F53 -> 0 | AQ53: 0 | AR53: 55.1 | AS53: 0 | AT53: 0 | AU53: =VLOOKUP(AJ53,'3.1) Infrastructure Replacement'!$AE$74:$AK$109,4,FALSE) ->  | AV53: 122 | AZ53: 0 | BD53: 0 | BJ53: 0 | BN53: 0 | BP53: 0 | BR53: =IF(#REF!=0,AL53,IF(#REF!>0,AN53)) -> 
AQ54: 0 | AR54: 56.1 | AS54: 0 | AT54: 0 | AU54: =VLOOKUP(AJ54,'3.1) Infrastructure Replacement'!$AE$74:$AK$109,4,FALSE) ->  | AV54: 122 | AZ54: 0 | BD54: 0 | BJ54: 0 | BN54: 0 | BP54: 0 | BR54: =IF(#REF!=0,AL54,IF(#REF!>0,AN54)) -> 
AQ55: 0 | AR55: 57.1 | AS55: 0 | AT55: 0 | AU55: =VLOOKUP(AJ55,'3.1) Infrastructure Replacement'!$AE$74:$AK$109,4,FALSE) ->  | AV55: 122 | AZ55: 0 | BD55: 0 | BJ55: 0 | BN55: 0 | BP55: 0 | BR55: =IF(#REF!=0,AL55,IF(#REF!>0,AN55)) -> 
C56: Theoretical Per Capita Demand | D56: 340 | E56: L/p/d | AQ56: 0 | AR56: 58.1 | AS56: 0 | AT56: 0 | AU56: =VLOOKUP(AJ56,'3.1) Infrastructure Replacement'!$AE$74:$AK$109,4,FALSE) ->  | AV56: 122 | AZ56: 0 | BD56: 0 | BJ56: 0 | BN56: 0 | BP56: 0 | BR56: =IF(#REF!=0,AL56,IF(#REF!>0,AN56)) -> 
C57: Average Day Flow | D57: =IF(G51>0,G51,D47*D56/1000) -> 0 | E57: m3/d | F57: =D57*1000/3.785/1440 -> 0 | G57: gpm | AQ57: 0 | AR57: 59.1 | AS57: 0 | AT57: 0 | AU57: =VLOOKUP(AJ57,'3.1) Infrastructure Replacement'!$AE$74:$AK$109,4,FALSE) ->  | AV57: 122 | AZ57: 0 | BD57: 0 | BJ57: 0 | BN57: 0 | BP57: 0 | BR57: =IF(#REF!=0,AL57,IF(#REF!>0,AN57)) -> 
C58: Maximum Day Flow | D58: =IF(G52>0,G52,D57*VLOOKUP(D47,'Table Inputs'!B4:E12,3,TRUE)) -> 0 | E58: m3/d | F58: =D58*1000/3.785/1440 -> 0 | G58: gpm | AQ58: 0 | AR58: 60.1 | AS58: 0 | AT58: 0 | AU58: =VLOOKUP(AJ58,'3.1) Infrastructure Replacement'!$AE$74:$AK$109,4,FALSE) ->  | AV58: 122 | AZ58: 0 | BD58: 0 | BJ58: 0 | BN58: 0 | BP58: 0 | BR58: =IF(#REF!=0,AL58,IF(#REF!>0,AN58)) -> 
C59: Peak Hour Flow | D59: =IF(G53>0,G53,D57*VLOOKUP(D47,'Table Inputs'!B4:E12,4,TRUE)) -> 0 | E59: m3/d | F59: =D59*1000/3.785/1440 -> 0 | G59: gpm | AQ59: 0 | AR59: 61.1 | AS59: 0 | AT59: 0 | AU59: =VLOOKUP(AJ59,'3.1) Infrastructure Replacement'!$AE$74:$AK$109,4,FALSE) ->  | AV59: 122 | AZ59: 0 | BD59: 0 | BJ59: 0 | BN59: 0 | BP59: 0 | BR59: =IF(#REF!=0,AL59,IF(#REF!>0,AN59)) -> 
AQ60: 0 | AR60: 62.1 | AS60: 0 | AT60: 0 | AU60: =VLOOKUP(AJ60,'3.1) Infrastructure Replacement'!$AE$74:$AK$109,4,FALSE) ->  | AV60: 122 | AZ60: 0 | BD60: 0 | BJ60: 0 | BN60: 0 | BP60: 0 | BR60: =IF(#REF!=0,AL60,IF(#REF!>0,AN60)) -> 
C61: Per Capita Values - Primary Season | AQ61: 0 | AR61: 63.1 | AS61: 0 | AT61: 0 | AU61: =VLOOKUP(AJ61,'3.1) Infrastructure Replacement'!$AE$74:$AK$109,4,FALSE) ->  | AV61: 122 | AZ61: 0 | BD61: 0 | BJ61: 0 | BN61: 0 | BP61: 0 | BR61: =IF(#REF!=0,AL61,IF(#REF!>0,AN61)) -> 
C62: Average | D62: =D57/D47*1000 ->  | E62: L/p/d | AQ62: 0 | AR62: 64.1 | AS62: 0 | AT62: 0 | AU62: =VLOOKUP(AJ62,'3.1) Infrastructure Replacement'!$AE$74:$AK$109,4,FALSE) ->  | AV62: 122 | AZ62: 0 | BD62: 0 | BJ62: 0 | BN62: 0 | BP62: 0 | BR62: =IF(#REF!=0,AL62,IF(#REF!>0,AN62)) -> 
C63: MDD | D63: =D58/D47*1000 ->  | E63: L/p/d | AQ63: 0 | AR63: 65.1 | AS63: 0 | AT63: 0 | AU63: =VLOOKUP(AJ63,'3.1) Infrastructure Replacement'!$AE$74:$AK$109,4,FALSE) ->  | AV63: 122 | AZ63: 0 | BD63: 0 | BJ63: 0 | BN63: 0 | BP63: 0 | BR63: =IF(#REF!=0,AL63,IF(#REF!>0,AN63)) -> 
C64: Peak Hour | D64: =D59/D47*1000 ->  | E64: L/p/d | AQ64: 0 | AR64: 66.1 | AS64: 0 | AT64: 0 | AU64: =VLOOKUP(AJ64,'3.1) Infrastructure Replacement'!$AE$74:$AK$109,4,FALSE) ->  | AV64: 122 | AZ64: 0 | BD64: 0 | BJ64: 0 | BN64: 0 | BP64: 0 | BR64: =IF(#REF!=0,AL64,IF(#REF!>0,AN64)) -> 
AQ65: 0 | AR65: 67.1 | AS65: 0 | AT65: 0 | AU65: =VLOOKUP(AJ65,'3.1) Infrastructure Replacement'!$AE$74:$AK$109,4,FALSE) ->  | AV65: 122 | AZ65: 0 | BD65: 0 | BJ65: 0 | BN65: 0 | BP65: 0 | BR65: =IF(#REF!=0,AL65,IF(#REF!>0,AN65)) -> 
AQ66: 0 | AR66: 68.1 | AS66: 0 | AT66: 0 | AU66: =VLOOKUP(AJ66,'3.1) Infrastructure Replacement'!$AE$74:$AK$109,4,FALSE) ->  | AV66: 122 | AZ66: 0 | BD66: 0 | BJ66: 0 | BN66: 0 | BP66: 0 | BR66: =IF(#REF!=0,AL66,IF(#REF!>0,AN66)) -> 
AQ67: =AP67-AO67 -> 0 | AR67: 69.1 | AS67: =AN67*(1-AR67) -> 0 | AT67: =AL67*(1-AR67) -> 0 | AU67: =VLOOKUP(AJ67,'3.1) Infrastructure Replacement'!$AE$74:$AK$109,4,FALSE) ->  | AV67: =DATEDIF(AK67,NOW(),"Y") -> 122 | AW67: =IF(AU67*1<AV67,"past due",AU67*1-AV67) ->  | AX67: =(AL67*((1+AQ67)^(-AW67))) ->  | AY67: =IF(AQ67=0%,(AX67/AW67),((AX67*AQ67)*((1+AQ67)^(AW67)))/(((1+AQ67)^(AW67))-1)) ->  | AZ67: =(AL67/((1+AQ67)^(AM67))) -> 0 | BA67: =IF(AQ67=0%,(AZ67/AM67),((AZ67*AQ67)*((1+AQ67)^(AM67)))/(((1+AQ67)^(AM67))-1)) ->  | BB67: =(AN67/((1+AQ67)^(AW67))) ->  | BC67: =IF(AQ67=0%,(BB67/AW67),(BB67*((AQ67*((1+AQ67)^(AW67)))/(((1+AQ67)^(AW67))-1)))) ->  | BD67: 0 | BE67: =IF(AQ67=0%,(BD67/AM67),(BD67*((AQ67*((1+AQ67)^(AM67)))/(((1+AQ67)^(AM67))-1)))) ->  | BF67: =IF(AND(AN67>0,AM67>0),BE67,IF(AN67>0,BC67,IF(AM67>0,BA67,AY67))) ->  | BG67: =IF(AND(AN67>0,AM67>0),BO67,IF(AND(AM67=0,AN67>0),BM67,IF(AND(AN67=0,AM67>0),BK67,BI67))) ->  | BH67: =AT67*((1+AQ67)^(-AW67)) ->  | BI67: =IF(AQ67=0%,(BH67/AW67),((BH67*AQ67)*((1+AQ67)^(AW67)))/(((1+AQ67)^(AW67))-1)) ->  | BJ67: =AT67/((1+AQ67)^(AM67)) -> 0 | BK67: =IF(AQ67=0%,(BJ67/AM67),((BJ67*AQ67)*((1+AQ67)^(AM67)))/(((1+AQ67)^(AM67))-1)) ->  | BL67: =AS67/((1+AQ67)^(AW67)) ->  | BM67: =IF(AQ67=0%,(BL67/AW67),(BL67*((AQ67*((1+AQ67)^(AW67)))/(((1+AQ67)^(AW67))-1)))) ->  | BN67: =AS67/((1+AQ67)^(AM67)) -> 0 | BO67: =IF(AQ67=0%,(BN67/AM67),(BN67*((AQ67*((1+AQ67)^(AM67)))/(((1+AQ67)^(AM67))-1)))) ->  | BP67: =IF(AN67>0,AS67,IF(AN67=0,AT67)) -> 0 | BQ67: =BF67-BG67 ->  | BR67: =IF(#REF!=0,AL67,IF(#REF!>0,AN67)) -> 
AQ68: 0 | AR68: 70.1 | AS68: 0 | AT68: 0 | AU68: =VLOOKUP(AJ68,'3.1) Infrastructure Replacement'!$AE$74:$AK$109,4,FALSE) ->  | AV68: 122 | AZ68: 0 | BD68: 0 | BJ68: 0 | BN68: 0 | BP68: 0 | BR68: =IF(#REF!=0,AL68,IF(#REF!>0,AN68)) -> 
AQ69: 0 | AR69: 71.1 | AS69: 0 | AT69: 0 | AU69: =VLOOKUP(AJ69,'3.1) Infrastructure Replacement'!$AE$74:$AK$109,4,FALSE) ->  | AV69: 122 | AZ69: 0 | BD69: 0 | BJ69: 0 | BN69: 0 | BP69: 0 | BR69: =IF(#REF!=0,AL69,IF(#REF!>0,AN69)) -> 
C70: PAGE 2 - Existing System Operation | AQ70: 0 | AR70: 72.1 | AS70: 0 | AT70: 0 | AU70: =VLOOKUP(AJ70,'3.1) Infrastructure Replacement'!$AE$74:$AK$109,4,FALSE) ->  | AV70: 122 | AZ70: 0 | BD70: 0 | BJ70: 0 | BN70: 0 | BP70: 0 | BR70: =IF(#REF!=0,AL70,IF(#REF!>0,AN70)) -> 
AQ71: 0 | AR71: 73.1 | AS71: 0 | AT71: 0 | AU71: =VLOOKUP(AJ71,'3.1) Infrastructure Replacement'!$AE$74:$AK$109,4,FALSE) ->  | AV71: 122 | AZ71: 0 | BD71: 0 | BJ71: 0 | BN71: 0 | BP71: 0 | BR71: =IF(#REF!=0,AL71,IF(#REF!>0,AN71)) -> 
C72: Disinfection: | AQ72: 0 | AR72: 74.1 | AS72: 0 | AT72: 0 | AU72: =VLOOKUP(AJ72,'3.1) Infrastructure Replacement'!$AE$74:$AK$109,4,FALSE) ->  | AV72: 122 | AZ72: 0 | BD72: 0 | BJ72: 0 | BN72: 0 | BP72: 0 | BR72: =IF(#REF!=0,AL72,IF(#REF!>0,AN72)) -> 
C73: Disinfection Type # | D73: Chemical | E73: System | F73: $/kg (Available Chlorine) | G73: Predicted Dose (mg/L) | AQ73: 0 | AR73: 75.1 | AS73: 0 | AT73: 0 | AU73: =VLOOKUP(AJ73,'3.1) Infrastructure Replacement'!$AE$74:$AK$109,4,FALSE) ->  | AV73: 122 | AZ73: 0 | BD73: =AN73/((1+AQ73)^(AM73)) -> 0 | BJ73: 0 | BN73: 0 | BP73: 0 | BR73: =IF(#REF!=0,AL73,IF(#REF!>0,AN73)) -> 
C74: 1 | D74: Sodium Hypochlorite | E74: Liquid Chlorine | F74: 14 | G74: =IF($D$19="Surface Water",5,2.5) -> 2.5 | AQ74: 0 | AR74: 76.1 | AS74: 0 | AT74: 0 | AU74: =VLOOKUP(AJ74,'3.1) Infrastructure Replacement'!$AE$74:$AK$109,4,FALSE) ->  | AV74: 122 | AZ74: 0 | BD74: 0 | BJ74: 0 | BN74: 0 | BP74: 0 | BR74: =IF(#REF!=0,AL74,IF(#REF!>0,AN74)) -> 
C75: 2 | D75: Chlorine Gas | E75: Chlorine Gas | F75: 6 | G75: =IF($D$19="Surface Water",5,2.5) -> 2.5 | AQ75: 0 | AR75: 77.1 | AS75: 0 | AT75: 0 | AU75: =VLOOKUP(AJ75,'3.1) Infrastructure Replacement'!$AE$74:$AK$109,4,FALSE) ->  | AV75: 122 | AZ75: 0 | BD75: 0 | BJ75: 0 | BN75: 0 | BP75: 0 | BR75: =IF(#REF!=0,AL75,IF(#REF!>0,AN75)) -> 
C76: 3 | D76: Salt | E76: Mixed Oxidants | F76: 0.9 | G76: =IF($D$19="Surface Water",5*3,2.5*3) -> 7.5 | AQ76: 0 | AR76: 78.1 | AS76: 0 | AT76: 0 | AU76: =VLOOKUP(AJ76,'3.1) Infrastructure Replacement'!$AE$74:$AK$109,4,FALSE) ->  | AV76: 122 | AZ76: 0 | BD76: 0 | BJ76: 0 | BN76: 0 | BP76: 0 | BR76: =IF(#REF!=0,AL76,IF(#REF!>0,AN76)) -> 
C77: 4 | D77: Calcium Hypochlorite | E77: Powdered chlorine | F77: 9 | G77: =IF($D$19="Surface Water",5,2.5) -> 2.5 | AQ77: 0 | AR77: 79.1 | AS77: 0 | AT77: 0 | AU77: =VLOOKUP(AJ77,'3.1) Infrastructure Replacement'!$AE$74:$AK$109,4,FALSE) ->  | AV77: 122 | AZ77: 0 | BD77: 0 | BJ77: 0 | BN77: 0 | BP77: 0 | BR77: =IF(#REF!=0,AL77,IF(#REF!>0,AN77)) -> 
C78: Disinfection type (option #): | D78: 1 | AQ78: 0 | AR78: 80.1 | AS78: 0 | AT78: 0 | AU78: =VLOOKUP(AJ78,'3.1) Infrastructure Replacement'!$AE$74:$AK$109,4,FALSE) ->  | AV78: 122 | AZ78: 0 | BD78: 0 | BJ78: 0 | BN78: 0 | BP78: 0 | BR78: =IF(#REF!=0,AL78,IF(#REF!>0,AN78)) -> 
C79: Disinfectant Type: | D79: =VLOOKUP(D78,C74:E77,3,FALSE) -> Liquid Chlorine | AQ79: 0 | AR79: 81.1 | AS79: 0 | AT79: 0 | AU79: =VLOOKUP(AJ79,'3.1) Infrastructure Replacement'!$AE$74:$AK$109,4,FALSE) ->  | AV79: 122 | AZ79: 0 | BD79: 0 | BJ79: 0 | BN79: 0 | BP79: 0 | BR79: =IF(#REF!=0,AL79,IF(#REF!>0,AN79)) -> 
C80: Disinfection Chemical: | D80: =VLOOKUP(D78,C74:D77,2,FALSE) -> Sodium Hypochlorite | AQ80: 0 | AR80: 82.1 | AS80: 0 | AT80: 0 | AU80: =VLOOKUP(AJ80,'3.1) Infrastructure Replacement'!$AE$74:$AK$109,4,FALSE) ->  | AV80: 122 | AZ80: 0 | BD80: 0 | BJ80: 0 | BN80: 0 | BP80: 0 | BR80: =IF(#REF!=0,AL80,IF(#REF!>0,AN80)) -> 
C81: UV disinfection included: | D81: FALSE | AQ81: 0 | AR81: 83.1 | AS81: 0 | AT81: 0 | AU81: =VLOOKUP(AJ81,'3.1) Infrastructure Replacement'!$AE$74:$AK$109,4,FALSE) ->  | AV81: 122 | AZ81: 0 | BD81: 0 | BJ81: 0 | BN81: 0 | BP81: 0 | BR81: =IF(#REF!=0,AL81,IF(#REF!>0,AN81)) -> 
AQ82: 0 | AR82: 84.1 | AS82: 0 | AT82: 0 | AU82: =VLOOKUP(AJ82,'3.1) Infrastructure Replacement'!$AE$74:$AK$109,4,FALSE) ->  | AV82: 122 | AZ82: 0 | BD82: 0 | BJ82: 0 | BN82: 0 | BP82: 0 | BR82: =IF(#REF!=0,AL82,IF(#REF!>0,AN82)) -> 
AQ83: 0 | AR83: 85.1 | AS83: 0 | AT83: 0 | AU83: =VLOOKUP(AJ83,'3.1) Infrastructure Replacement'!$AE$74:$AK$109,4,FALSE) ->  | AV83: 122 | AZ83: 0 | BD83: 0 | BJ83: 0 | BN83: 0 | BP83: 0 | BR83: =IF(#REF!=0,AL83,IF(#REF!>0,AN83)) -> 
C84: Treatment Chemicals | AQ84: 0 | AR84: 86.1 | AS84: 0 | AT84: 0 | AU84: =VLOOKUP(AJ84,'3.1) Infrastructure Replacement'!$AE$74:$AK$109,4,FALSE) ->  | AV84: 122 | AZ84: 0 | BD84: 0 | BJ84: 0 | BN84: 0 | BP84: 0 | BR84: =IF(#REF!=0,AL84,IF(#REF!>0,AN84)) -> 
C85: pH Adjustment Chemical # | D85: Chemical | E85: $/kg | F85: Predicted Dose (mg/L) | AQ85: 0 | AR85: 87.1 | AS85: 0 | AT85: 0 | AU85: =VLOOKUP(AJ85,'3.1) Infrastructure Replacement'!$AE$74:$AK$109,4,FALSE) ->  | AV85: 122 | AZ85: 0 | BD85: 0 | BJ85: 0 | BN85: 0 | BP85: 0 | BR85: =IF(#REF!=0,AL85,IF(#REF!>0,AN85)) -> 
C86: 1 | D86: None | E86: 0 | F86: 0 | AQ86: 0 | AR86: 88.1 | AS86: 0 | AT86: 0 | AU86: =VLOOKUP(AJ86,'3.1) Infrastructure Replacement'!$AE$74:$AK$109,4,FALSE) ->  | AV86: 122 | AZ86: 0 | BD86: 0 | BJ86: 0 | BN86: 0 | BP86: 0 | BR86: =IF(#REF!=0,AL86,IF(#REF!>0,AN86)) -> 
C87: 2 | D87: Soda Ash | E87: 1.55 | F87: 30 | AQ87: 0 | AR87: 89.1 | AS87: 0 | AT87: 0 | AU87: =VLOOKUP(AJ87,'3.1) Infrastructure Replacement'!$AE$74:$AK$109,4,FALSE) ->  | AV87: 122 | AZ87: 0 | BD87: 0 | BJ87: 0 | BN87: 0 | BP87: 0 | BR87: =IF(#REF!=0,AL87,IF(#REF!>0,AN87)) -> 
C88: 3 | D88: Lime | E88: 1.1 | F88: 11 | AQ88: 0 | AR88: 90.1 | AS88: 0 | AT88: 0 | AU88: =VLOOKUP(AJ88,'3.1) Infrastructure Replacement'!$AE$74:$AK$109,4,FALSE) ->  | AV88: 122 | AZ88: 0 | BD88: 0 | BJ88: 0 | BN88: 0 | BP88: 0 | BR88: =IF(#REF!=0,AL88,IF(#REF!>0,AN88)) -> 
C89: 4 | D89: Caustic Soda | E89: 1.5 | F89: 12 | AQ89: 0 | AR89: 91.1 | AS89: 0 | AT89: 0 | AU89: =VLOOKUP(AJ89,'3.1) Infrastructure Replacement'!$AE$74:$AK$109,4,FALSE) ->  | AV89: 122 | AZ89: 0 | BD89: 0 | BJ89: 0 | BN89: 0 | BP89: 0 | BR89: =IF(#REF!=0,AL89,IF(#REF!>0,AN89)) -> 
C90: pH adjustment chemical Option #: | D90: 1 | AQ90: 0 | AR90: 92.1 | AS90: 0 | AT90: 0 | AU90: =VLOOKUP(AJ90,'3.1) Infrastructure Replacement'!$AE$74:$AK$109,4,FALSE) ->  | AV90: 122 | AZ90: 0 | BD90: 0 | BJ90: 0 | BN90: 0 | BP90: 0 | BR90: =IF(#REF!=0,AL90,IF(#REF!>0,AN90)) -> 
C91: pH adjustment chemical selected: | D91: =VLOOKUP(D90,C86:D89,2,FALSE) -> None | AQ91: 0 | AR91: 93.1 | AS91: 0 | AT91: 0 | AU91: =VLOOKUP(AJ91,'3.1) Infrastructure Replacement'!$AE$74:$AK$109,4,FALSE) ->  | AV91: 122 | AZ91: 0 | BD91: 0 | BJ91: 0 | BN91: 0 | BP91: 0 | BR91: =IF(#REF!=0,AL91,IF(#REF!>0,AN91)) -> 
AQ92: 0 | AR92: 94.1 | AS92: 0 | AT92: 0 | AU92: =VLOOKUP(AJ92,'3.1) Infrastructure Replacement'!$AE$74:$AK$109,4,FALSE) ->  | AV92: 122 | AZ92: 0 | BD92: 0 | BJ92: 0 | BN92: 0 | BP92: 0 | BR92: =IF(#REF!=0,AL92,IF(#REF!>0,AN92)) -> 
AQ93: 0 | AR93: 95.1 | AS93: 0 | AT93: 0 | AU93: =VLOOKUP(AJ93,'3.1) Infrastructure Replacement'!$AE$74:$AK$109,4,FALSE) ->  | AV93: 122 | AZ93: 0 | BD93: 0 | BJ93: 0 | BN93: 0 | BP93: 0 | BR93: =IF(#REF!=0,AL93,IF(#REF!>0,AN93)) -> 
C94: Treatment Process | D94: Included? | AQ94: 0 | AR94: 96.1 | AS94: 0 | AT94: 0 | AU94: =VLOOKUP(AJ94,'3.1) Infrastructure Replacement'!$AE$74:$AK$109,4,FALSE) ->  | AV94: 122 | AZ94: 0 | BD94: 0 | BJ94: 0 | BN94: 0 | BP94: 0 | BR94: =IF(#REF!=0,AL94,IF(#REF!>0,AN94)) -> 
C95: None | D95: FALSE | AQ95: 0 | AR95: 97.1 | AS95: 0 | AT95: 0 | AU95: =VLOOKUP(AJ95,'3.1) Infrastructure Replacement'!$AE$74:$AK$109,4,FALSE) ->  | AV95: 122 | AZ95: 0 | BD95: 0 | BJ95: 0 | BN95: 0 | BP95: 0 | BR95: =IF(#REF!=0,AL95,IF(#REF!>0,AN95)) -> 
C96: Inline Filtration | D96: FALSE | AQ96: 0 | AR96: 98.1 | AS96: 0 | AT96: 0 | AU96: =VLOOKUP(AJ96,'3.1) Infrastructure Replacement'!$AE$74:$AK$109,4,FALSE) ->  | AV96: 122 | AZ96: 0 | BD96: 0 | BJ96: 0 | BN96: 0 | BP96: 0 | BR96: =IF(#REF!=0,AL96,IF(#REF!>0,AN96)) -> 
C97: Iron / Manganese Removal | D97: FALSE | AQ97: 0 | AR97: 99.1 | AS97: 0 | AT97: 0 | AU97: =VLOOKUP(AJ97,'3.1) Infrastructure Replacement'!$AE$74:$AK$109,4,FALSE) ->  | AV97: 122 | AZ97: 0 | BD97: 0 | BJ97: 0 | BN97: 0 | BP97: 0 | BR97: =IF(#REF!=0,AL97,IF(#REF!>0,AN97)) -> 
C98: Arsenic Removal | D98: FALSE | AQ98: 0 | AR98: 100.1 | AS98: 0 | AT98: 0 | AU98: =VLOOKUP(AJ98,'3.1) Infrastructure Replacement'!$AE$74:$AK$109,4,FALSE) ->  | AV98: 122 | AZ98: 0 | BD98: 0 | BJ98: 0 | BN98: 0 | BP98: 0 | BR98: =IF(#REF!=0,AL98,IF(#REF!>0,AN98)) -> 
C99: Membrane Treatment | D99: FALSE | AQ99: 0 | AR99: 101.1 | AS99: 0 | AT99: 0 | AU99: =VLOOKUP(AJ99,'3.1) Infrastructure Replacement'!$AE$74:$AK$109,4,FALSE) ->  | AV99: 122 | AZ99: 0 | BD99: 0 | BJ99: 0 | BN99: 0 | BP99: 0 | BR99: =IF(#REF!=0,AL99,IF(#REF!>0,AN99)) -> 
C100: Conventional WTP | D100: FALSE | AQ100: 0 | AR100: 102.1 | AS100: 0 | AT100: 0 | AU100: =VLOOKUP(AJ100,'3.1) Infrastructure Replacement'!$AE$74:$AK$109,4,FALSE) ->  | AV100: 122 | AZ100: 0 | BD100: 0 | BJ100: 0 | BN100: 0 | BP100: 0 | BR100: =IF(#REF!=0,AL100,IF(#REF!>0,AN100)) -> 
C101: PWDU | D101: FALSE | AQ101: 0 | AR101: 103.1 | AS101: 0 | AT101: 0 | AU101: =VLOOKUP(AJ101,'3.1) Infrastructure Replacement'!$AE$74:$AK$109,4,FALSE) ->  | AV101: 122 | AZ101: 0 | BD101: 0 | BJ101: 0 | BN101: 0 | BP101: 0 | BR101: =IF(#REF!=0,AL101,IF(#REF!>0,AN101)) -> 
AQ102: 0 | AR102: 104.1 | AS102: 0 | AT102: 0 | AU102: =VLOOKUP(AJ102,'3.1) Infrastructure Replacement'!$AE$74:$AK$109,4,FALSE) ->  | AV102: 122 | AZ102: 0 | BD102: 0 | BJ102: 0 | BN102: 0 | BP102: 0 | BR102: =IF(#REF!=0,AL102,IF(#REF!>0,AN102)) -> 
AQ103: 0 | AR103: 105.1 | AS103: 0 | AT103: 0 | AU103: =VLOOKUP(AJ103,'3.1) Infrastructure Replacement'!$AE$74:$AK$109,4,FALSE) ->  | AV103: 122 | AZ103: 0 | BD103: 0 | BJ103: 0 | BN103: 0 | BP103: 0 | BR103: =IF(#REF!=0,AL103,IF(#REF!>0,AN103)) -> 
D104: Population Under 500? | E104: =IF(D47>499, "OVER", "UNDER") -> UNDER | AQ104: 0 | AR104: 106.1 | AS104: 0 | AT104: 0 | AU104: =VLOOKUP(AJ104,'3.1) Infrastructure Replacement'!$AE$74:$AK$109,4,FALSE) ->  | AV104: 122 | AZ104: 0 | BD104: 0 | BJ104: 0 | BN104: 0 | BP104: 0 | BR104: =IF(#REF!=0,AL104,IF(#REF!>0,AN104)) -> 
C105: O&M Costs for Treatment Items: | E105: Population Under 500 | H105: Population Over 500 | AR105: 0 | AS105: 107.1 | AT105: 0 | AU105: 0 | AV105: =VLOOKUP(AK105,'3.1) Infrastructure Replacement'!$AE$74:$AK$109,4,FALSE) ->  | AW105: 122 | BA105: 0 | BE105: 0 | BK105: 0 | BO105: 0 | BQ105: 0 | BS105: =IF(#REF!=0,AM105,IF(#REF!>0,AO105)) -> 
C106: Treatment Type | D106: Selected? | E106: Slope | F106: Intercept | H106: Slope | I106: Intercept | J106: Cost | AT106: 0 | AU106: 108.1 | AV106: 0 | AW106: 0 | AX106: =VLOOKUP(AM106,'3.1) Infrastructure Replacement'!$AE$74:$AK$109,4,FALSE) ->  | AY106: 122 | BC106: 0 | BG106: 0 | BM106: 0 | BQ106: 0 | BS106: 0 | BU106: =IF(#REF!=0,AO106,IF(#REF!>0,AQ106)) -> 
C107: Disinfection with Sodium Hypochlorite | D107: =IF(D78=1,TRUE,FALSE) -> TRUE | E107: =(H107*$D$57+I107-F107)/170 -> 35.7476795 | F107: =0.1*I107 -> 675.2339462 | G107: =IF(OR($D$57<0.00001,D107=FALSE,$E$104="OVER"),0,($D$57*E107+F107)) -> 0 | H107: 24.56034582 | I107: 6752.339462 | J107: =IF(OR($D$57<0.00001,D107=FALSE,$E$104="UNDER"),0,D107*(I107+H107*$D$57)) -> 0 | AT107: 0 | AU107: 109.1 | AV107: 0 | AW107: 0 | AX107: =VLOOKUP(AM107,'3.1) Infrastructure Replacement'!$AE$74:$AK$109,4,FALSE) ->  | AY107: 122 | BC107: 0 | BG107: 0 | BM107: 0 | BQ107: 0 | BS107: 0 | BU107: =IF(#REF!=0,AO107,IF(#REF!>0,AQ107)) -> 
C108: Disinfection with Chlorine Gas | D108: =IF(D78=2,TRUE,FALSE) -> FALSE | E108: =(H108*$D$57+I108-F108)/170 -> 44.77580598 | F108: =0.1*I108 -> 845.765224 | G108: =IF(OR($D$57<0.00001,D108=FALSE,$E$104="OVER"),0,($D$57*E108+F108)) -> 0 | H108: 17.89221389 | I108: 8457.65224 | J108: =IF(OR($D$57<0.00001,D108=FALSE,$E$104="UNDER"),0,D108*(I108+H108*$D$57)) -> 0 | AT108: 0 | AU108: 110.1 | AV108: 0 | AW108: 0 | AX108: =VLOOKUP(AM108,'3.1) Infrastructure Replacement'!$AE$74:$AK$109,4,FALSE) ->  | AY108: 122 | BC108: 0 | BG108: 0 | BM108: 0 | BQ108: 0 | BS108: 0 | BU108: =IF(#REF!=0,AO108,IF(#REF!>0,AQ108)) -> 
C109: Disinfection with OSHG | D109: =IF(D78=3,TRUE,FALSE) -> FALSE | E109: 109.8174611 | F109: 2074.329821 | G109: =IF(OR($D$57<0.00001,D109=FALSE,$E$104="OVER"),0,($D$57*E109+F109)) -> 0 | H109: 11.30301294 | I109: 20743.29821 | J109: 0 | AT109: 0 | AU109: 111.1 | AV109: 0 | AW109: 0 | AX109: =VLOOKUP(AM109,'3.1) Infrastructure Replacement'!$AE$74:$AK$109,4,FALSE) ->  | AY109: 122 | BC109: 0 | BG109: 0 | BM109: 0 | BQ109: 0 | BS109: 0 | BU109: =IF(#REF!=0,AO109,IF(#REF!>0,AQ109)) -> 
C110: Disinfection with Calcium Hypochlorite | D110: =IF(D78=4,TRUE,FALSE) -> FALSE | E110: 30.2982563 | F110: 572.3003967 | G110: 0 | H110: 19.84019185 | I110: 5723.003967 | J110: 0 | AT110: 0 | AU110: 112.1 | AV110: 0 | AW110: 0 | AX110: =VLOOKUP(AM110,'3.1) Infrastructure Replacement'!$AE$74:$AK$109,4,FALSE) ->  | AY110: 122 | BC110: 0 | BG110: 0 | BM110: 0 | BQ110: 0 | BS110: 0 | BU110: =IF(#REF!=0,AO110,IF(#REF!>0,AQ110)) -> 
C111: UV Disinfection | D111: =IF(D81=TRUE,TRUE,FALSE) -> FALSE | E111: 9.804619547 | F111: 185.1983692 | G111: 0 | H111: 9.156074262 | I111: 1851.983692 | J111: 0 | AT111: 0 | AU111: 113.1 | AV111: 0 | AW111: 0 | AX111: =VLOOKUP(AM111,'3.1) Infrastructure Replacement'!$AE$74:$AK$109,4,FALSE) ->  | AY111: 122 | BC111: 0 | BG111: 0 | BM111: 0 | BQ111: 0 | BS111: 0 | BU111: =IF(#REF!=0,AO111,IF(#REF!>0,AQ111)) -> 
C112: + pH adjustment with Soda Ash | D112: =IF(D90=2,TRUE,FALSE) -> FALSE | E112: 14.48444951 | F112: 273.5951573 | G112: 0 | H112: 22.20157627 | I112: 2735.951573 | J112: 0 | AT112: 0 | AU112: 114.1 | AV112: 0 | AW112: 0 | AX112: =VLOOKUP(AM112,'3.1) Infrastructure Replacement'!$AE$74:$AK$109,4,FALSE) ->  | AY112: 122 | BC112: 0 | BG112: 0 | BM112: 0 | BQ112: 0 | BS112: 0 | BU112: =IF(#REF!=0,AO112,IF(#REF!>0,AQ112)) -> 
C113: + pH adjustment with Lime | D113: =IF(D90=3,TRUE,FALSE) -> FALSE | E113: 20.19379072 | F113: 381.4382692 | G113: 0 | H113: 11.86379345 | I113: 3814.382692 | J113: 0 | AT113: 0 | AU113: 115.1 | AV113: 0 | AW113: 0 | AX113: =VLOOKUP(AM113,'3.1) Infrastructure Replacement'!$AE$74:$AK$109,4,FALSE) ->  | AY113: 122 | BC113: 0 | BG113: 0 | BM113: 0 | BQ113: 0 | BS113: 0 | BU113: =IF(#REF!=0,AO113,IF(#REF!>0,AQ113)) -> 
C114: + pH adjustment with Caustic Soda | D114: =IF(D90=4, TRUE,FALSE) -> FALSE | E114: 9.90879712 | F114: 187.1661678 | G114: 0 | H114: 11.0868552 | I114: 1871.661678 | J114: =IF(OR($D$57<0.00001,D114=FALSE,$E$104="UNDER"),0,D114*(I114+H114*$D$57)) -> 0 | AT114: 0 | AU114: 116.1 | AV114: 0 | AW114: 0 | AX114: =VLOOKUP(AM114,'3.1) Infrastructure Replacement'!$AE$74:$AK$109,4,FALSE) ->  | AY114: 122 | BC114: 0 | BG114: 0 | BM114: 0 | BQ114: 0 | BS114: 0 | BU114: =IF(#REF!=0,AO114,IF(#REF!>0,AQ114)) -> 
C115: Inline Filtration | D115: =D96 -> FALSE | E115: 25.71703996 | F115: 485.7663104 | G115: 0 | H115: 15.30974468 | I115: 4857.663104 | J115: 0 | AT115: 0 | AU115: 117.1 | AV115: 0 | AW115: 0 | AX115: =VLOOKUP(AM115,'3.1) Infrastructure Replacement'!$AE$74:$AK$109,4,FALSE) ->  | AY115: 122 | BC115: 0 | BG115: 0 | BM115: 0 | BQ115: 0 | BS115: 0 | BU115: =IF(#REF!=0,AO115,IF(#REF!>0,AQ115)) -> 
C116: Iron / Manganes Removal | D116: FALSE | E116: 15.47116161 | F116: 292.2330527 | G116: 0 | H116: 20.86448857 | I116: 2922.330527 | J116: =IF(OR($D$57<0.00001,D116=FALSE,$E$104="UNDER"),0,D116*(I116+H116*$D$57)) -> 0 | AT116: 0 | AU116: 118.1 | AV116: 0 | AW116: 0 | AX116: =VLOOKUP(AM116,'3.1) Infrastructure Replacement'!$AE$74:$AK$109,4,FALSE) ->  | AY116: 122 | BC116: 0 | BG116: 0 | BM116: 0 | BQ116: 0 | BS116: 0 | BU116: =IF(#REF!=0,AO116,IF(#REF!>0,AQ116)) -> 
C117: Arsenic Removal | D117: FALSE | E117: 16.86568712 | F117: 318.57409 | G117: 0 | H117: 20.85528762 | I117: 3185.7409 | J117: 0 | AT117: 0 | AU117: 119.1 | AV117: 0 | AW117: 0 | AX117: =VLOOKUP(AM117,'3.1) Infrastructure Replacement'!$AE$74:$AK$109,4,FALSE) ->  | AY117: 122 | BC117: 0 | BG117: 0 | BM117: 0 | BQ117: 0 | BS117: 0 | BU117: =IF(#REF!=0,AO117,IF(#REF!>0,AQ117)) -> 
C118: Membrane Treatment | D118: FALSE | E118: 327.0456331 | F118: 6177.528625 | G118: 0 | H118: 59.80847036 | I118: 61775.28625 | J118: 0 | AT118: 0 | AU118: 120.1 | AV118: 0 | AW118: 0 | AX118: =VLOOKUP(AM118,'3.1) Infrastructure Replacement'!$AE$74:$AK$109,4,FALSE) ->  | AY118: 122 | BC118: 0 | BG118: 0 | BM118: 0 | BQ118: 0 | BS118: 0 | BU118: =IF(#REF!=0,AO118,IF(#REF!>0,AQ118)) -> 
C119: Engineered Filtration | D119: FALSE | E119: 341.0754272 | F119: 6442.535847 | G119: 0 | H119: 78.41930361 | I119: 64425.35847 | J119: 0 | AT119: 0 | AU119: 121.1 | AV119: 0 | AW119: 0 | AX119: =VLOOKUP(AM119,'3.1) Infrastructure Replacement'!$AE$74:$AK$109,4,FALSE) ->  | AY119: 122 | BC119: 0 | BG119: 0 | BM119: 0 | BQ119: 0 | BS119: 0 | BU119: =IF(#REF!=0,AO119,IF(#REF!>0,AQ119)) -> 
C120: PWDU | D120: FALSE | E120: =H120 -> 52.31623843 | F120: =I120 -> 1968.893352 | G120: 0 | H120: 52.31623843 | I120: 1968.893352 | J120: 0 | AT120: 0 | AU120: 122.1 | AV120: 0 | AW120: 0 | AX120: =VLOOKUP(AM120,'3.1) Infrastructure Replacement'!$AE$74:$AK$109,4,FALSE) ->  | AY120: 122 | BC120: 0 | BG120: 0 | BM120: 0 | BQ120: 0 | BS120: 0 | BU120: =IF(#REF!=0,AO120,IF(#REF!>0,AQ120)) -> 
I121: ="Total Treatment Cost ("&$D$22&"$)" -> Total Treatment Cost (2017$) | J121: =ROUND(SUM(J107:J120,G107:G120,D136),-3) -> 0 | AT121: 0 | AU121: 123.1 | AV121: 0 | AW121: 0 | AX121: =VLOOKUP(AM121,'3.1) Infrastructure Replacement'!$AE$74:$AK$109,4,FALSE) ->  | AY121: 122 | BC121: 0 | BG121: 0 | BM121: 0 | BQ121: 0 | BS121: 0 | BU121: =IF(#REF!=0,AO121,IF(#REF!>0,AQ121)) -> 
I122: ="Total Cost ("&$D$17&"$)" -> Total Cost (0$) | J122: =J121*$D$23 -> 0 | AT122: 0 | AU122: 124.1 | AV122: 0 | AW122: 0 | AX122: =VLOOKUP(AM122,'3.1) Infrastructure Replacement'!$AE$74:$AK$109,4,FALSE) ->  | AY122: 122 | BC122: 0 | BG122: 0 | BM122: 0 | BQ122: 0 | BS122: 0 | BU122: =IF(#REF!=0,AO122,IF(#REF!>0,AQ122)) -> 
I123: ="Total Cost ("&$D$40&"$)" -> Total Cost (0$) | J123: =J122*$D$23*$D$42 -> 0 | AQ123: 0 | AR123: 125.1 | AS123: 0 | AT123: 0 | AU123: =VLOOKUP(AJ123,'3.1) Infrastructure Replacement'!$AE$74:$AK$109,4,FALSE) ->  | AV123: 122 | AZ123: 0 | BD123: 0 | BJ123: 0 | BN123: 0 | BP123: 0 | BR123: =IF(#REF!=0,AL123,IF(#REF!>0,AN123)) -> 
C124: Distribution System Chlorine Boosting: | E124: 1 | F124: 0 | AQ124: 0 | AR124: 126.1 | AS124: 0 | AT124: 0 | AU124: =VLOOKUP(AJ124,'3.1) Infrastructure Replacement'!$AE$74:$AK$109,4,FALSE) ->  | AV124: 122 | AZ124: 0 | BD124: 0 | BJ124: 0 | BN124: 0 | BP124: 0 | BR124: =IF(#REF!=0,AL124,IF(#REF!>0,AN124)) -> 
C125: Boosting Option Value | D125: 1 | E125: 2 | F125: 0.1 | AQ125: 0 | AR125: 127.1 | AS125: 0 | AT125: 0 | AU125: =VLOOKUP(AJ125,'3.1) Infrastructure Replacement'!$AE$74:$AK$109,4,FALSE) ->  | AV125: 122 | AZ125: 0 | BD125: 0 | BJ125: 0 | BN125: 0 | BP125: 0 | BR125: =IF(#REF!=0,AL125,IF(#REF!>0,AN125)) -> 
C126: No | E126: 3 | F126: 0.2 | AQ126: 0 | AR126: 128.1 | AS126: 0 | AT126: 0 | AU126: =VLOOKUP(AJ126,'3.1) Infrastructure Replacement'!$AE$74:$AK$109,4,FALSE) ->  | AV126: 122 | AZ126: 0 | BD126: 0 | BJ126: 0 | BN126: 0 | BP126: 0 | BR126: =IF(#REF!=0,AL126,IF(#REF!>0,AN126)) -> 
C127: Yes, with sodium hypochlorite | E127: 4 | F127: 0.3 | AQ127: 0 | AR127: 129.1 | AS127: 0 | AT127: 0 | AU127: =VLOOKUP(AJ127,'3.1) Infrastructure Replacement'!$AE$74:$AK$109,4,FALSE) ->  | AV127: 122 | AZ127: 0 | BD127: 0 | BJ127: 0 | BN127: 0 | BP127: 0 | BR127: =IF(#REF!=0,AL127,IF(#REF!>0,AN127)) -> 
C128: Yes, with chlorine gas | E128: 5 | F128: 0.4 | AQ128: 0 | AR128: 130.1 | AS128: 0 | AT128: 0 | AU128: =VLOOKUP(AJ128,'3.1) Infrastructure Replacement'!$AE$74:$AK$109,4,FALSE) ->  | AV128: 122 | AZ128: 0 | BD128: 0 | BJ128: 0 | BN128: 0 | BP128: 0 | BR128: =IF(#REF!=0,AL128,IF(#REF!>0,AN128)) -> 
C129: Rule | D129: =IF(OR(D125=2,D125=3),TRUE,FALSE) -> FALSE | E129: 6 | F129: 0.5 | AQ129: 0 | AR129: 131.1 | AS129: 0 | AT129: 0 | AU129: =VLOOKUP(AJ129,'3.1) Infrastructure Replacement'!$AE$74:$AK$109,4,FALSE) ->  | AV129: 122 | AZ129: 0 | BD129: 0 | BJ129: 0 | BN129: 0 | BP129: 0 | BR129: =IF(#REF!=0,AL129,IF(#REF!>0,AN129)) -> 
C130: Dist. Percent Boosted Option # | D130: 1 | E130: 7 | F130: 0.6 | AQ130: 0 | AR130: 132.1 | AS130: 0 | AT130: 0 | AU130: =VLOOKUP(AJ130,'3.1) Infrastructure Replacement'!$AE$74:$AK$109,4,FALSE) ->  | AV130: 122 | AZ130: 0 | BD130: 0 | BJ130: 0 | BN130: 0 | BP130: 0 | BR130: =IF(#REF!=0,AL130,IF(#REF!>0,AN130)) -> 
E131: 8 | F131: 0.7 | AQ131: =AP131-AO131 -> 0 | AR131: 133.1 | AS131: =AN131*(1-AR131) -> 0 | AT131: =AL131*(1-AR131) -> 0 | AU131: =VLOOKUP(AJ131,'3.1) Infrastructure Replacement'!$AE$74:$AK$109,4,FALSE) ->  | AV131: =DATEDIF(AK131,NOW(),"Y") -> 122 | AW131: =IF(AU131*1<AV131,"past due",AU131*1-AV131) ->  | AX131: =(AL131*((1+AQ131)^(-AW131))) ->  | AY131: =IF(AQ131=0%,(AX131/AW131),((AX131*AQ131)*((1+AQ131)^(AW131)))/(((1+AQ131)^(AW131))-1)) ->  | AZ131: =(AL131/((1+AQ131)^(AM131))) -> 0 | BA131: =IF(AQ131=0%,(AZ131/AM131),((AZ131*AQ131)*((1+AQ131)^(AM131)))/(((1+AQ131)^(AM131))-1)) ->  | BB131: =(AN131/((1+AQ131)^(AW131))) ->  | BC131: =IF(AQ131=0%,(BB131/AW131),(BB131*((AQ131*((1+AQ131)^(AW131)))/(((1+AQ131)^(AW131))-1)))) ->  | BD131: 0 | BE131: =IF(AQ131=0%,(BD131/AM131),(BD131*((AQ131*((1+AQ131)^(AM131)))/(((1+AQ131)^(AM131))-1)))) ->  | BF131: =IF(AND(AN131>0,AM131>0),BE131,IF(AN131>0,BC131,IF(AM131>0,BA131,AY131))) ->  | BG131: =IF(AND(AN131>0,AM131>0),BO131,IF(AND(AM131=0,AN131>0),BM131,IF(AND(AN131=0,AM131>0),BK131,BI131))) ->  | BH131: =AT131*((1+AQ131)^(-AW131)) ->  | BI131: =IF(AQ131=0%,(BH131/AW131),((BH131*AQ131)*((1+AQ131)^(AW131)))/(((1+AQ131)^(AW131))-1)) ->  | BJ131: =AT131/((1+AQ131)^(AM131)) -> 0 | BK131: =IF(AQ131=0%,(BJ131/AM131),((BJ131*AQ131)*((1+AQ131)^(AM131)))/(((1+AQ131)^(AM131))-1)) ->  | BL131: =AS131/((1+AQ131)^(AW131)) ->  | BM131: =IF(AQ131=0%,(BL131/AW131),(BL131*((AQ131*((1+AQ131)^(AW131)))/(((1+AQ131)^(AW131))-1)))) ->  | BN131: =AS131/((1+AQ131)^(AM131)) -> 0 | BO131: =IF(AQ131=0%,(BN131/AM131),(BN131*((AQ131*((1+AQ131)^(AM131)))/(((1+AQ131)^(AM131))-1)))) ->  | BP131: =IF(AN131>0,AS131,IF(AN131=0,AT131)) -> 0 | BQ131: =BF131-BG131 ->  | BR131: =IF(#REF!=0,AL131,IF(#REF!>0,AN131)) -> 
E132: 9 | F132: 0.8 | AQ132: 0 | AR132: 134.1 | AS132: 0 | AT132: 0 | AU132: =VLOOKUP(AJ132,'3.1) Infrastructure Replacement'!$AE$74:$AK$109,4,FALSE) ->  | AV132: 122 | AZ132: 0 | BD132: 0 | BJ132: 0 | BN132: 0 | BP132: 0 | BR132: =IF(#REF!=0,AL132,IF(#REF!>0,AN132)) -> 
C133: Percent Serviced | D133: =VLOOKUP(D130,E124:F134,2,FALSE) -> 0 | E133: 10 | F133: 0.9 | AQ133: 0 | AR133: 135.1 | AS133: 0 | AT133: 0 | AU133: =VLOOKUP(AJ133,'3.1) Infrastructure Replacement'!$AE$74:$AK$109,4,FALSE) ->  | AV133: 122 | AZ133: 0 | BD133: 0 | BJ133: 0 | BN133: 0 | BP133: 0 | BR133: =IF(#REF!=0,AL133,IF(#REF!>0,AN133)) -> 
C134: Dose as Chlorine (mg/L) | D134: 1 | E134: 11 | F134: 1 | AQ134: 0 | AR134: 136.1 | AS134: 0 | AT134: 0 | AU134: =VLOOKUP(AJ134,'3.1) Infrastructure Replacement'!$AE$74:$AK$109,4,FALSE) ->  | AV134: 122 | AZ134: 0 | BD134: 0 | BJ134: 0 | BN134: 0 | BP134: 0 | BR134: =IF(#REF!=0,AL134,IF(#REF!>0,AN134)) -> 
C135: Unit Cost of Chemical | D135: =IF(D125=2,F74,IF(D125=3,F75,0)) -> 0 | AQ135: 0 | AR135: 137.1 | AS135: 0 | AT135: 0 | AU135: =VLOOKUP(AJ135,'3.1) Infrastructure Replacement'!$AE$74:$AK$109,4,FALSE) ->  | AV135: 122 | AZ135: 0 | BD135: 0 | BJ135: 0 | BN135: 0 | BP135: 0 | BR135: =IF(#REF!=0,AL135,IF(#REF!>0,AN135)) -> 
C136: Annual Cost | D136: =$D$57*1000*365*D134/1000/1000*D135*D133*D42*D23 -> 0 | AQ136: 0 | AR136: 138.1 | AS136: 0 | AT136: 0 | AU136: =VLOOKUP(AJ136,'3.1) Infrastructure Replacement'!$AE$74:$AK$109,4,FALSE) ->  | AV136: 122 | AZ136: 0 | BD136: 0 | BJ136: 0 | BN136: 0 | BP136: 0 | BR136: =IF(#REF!=0,AL136,IF(#REF!>0,AN136)) -> 
AQ137: 0 | AR137: 139.1 | AS137: 0 | AT137: 0 | AU137: =VLOOKUP(AJ137,'3.1) Infrastructure Replacement'!$AE$74:$AK$109,4,FALSE) ->  | AV137: 122 | AZ137: 0 | BD137: =AN137/((1+AQ137)^(AM137)) -> 0 | BJ137: 0 | BN137: 0 | BP137: 0 | BR137: =IF(#REF!=0,AL137,IF(#REF!>0,AN137)) -> 
AQ138: 0 | AR138: 140.1 | AS138: 0 | AT138: 0 | AU138: =VLOOKUP(AJ138,'3.1) Infrastructure Replacement'!$AE$74:$AK$109,4,FALSE) ->  | AV138: 122 | AZ138: 0 | BD138: 0 | BJ138: 0 | BN138: 0 | BP138: 0 | BR138: =IF(#REF!=0,AL138,IF(#REF!>0,AN138)) -> 
C139: O&M Costs for non-treatment Related Items: | E139: Population Under 500? | F139: =IF(D47>499, "OVER", "UNDER") -> UNDER | AS139: 0 | AT139: 141.1 | AU139: 0 | AV139: 0 | AW139: =VLOOKUP(AL139,'3.1) Infrastructure Replacement'!$AE$74:$AK$109,4,FALSE) ->  | AX139: 122 | BB139: 0 | BF139: 0 | BL139: 0 | BP139: 0 | BR139: 0 | BT139: =IF(#REF!=0,AN139,IF(#REF!>0,AP139)) -> 
C140: Item | D140: Source Type | E140: Slope (Under) | F140: Intercept (Under) | G140: Slope (Over) | H140: Intercept (Over) | I140: ="Cost ("&$D$22&"$)" -> Cost (2017$) | AS140: 0 | AT140: 142.1 | AU140: 0 | AV140: 0 | AW140: =VLOOKUP(AL140,'3.1) Infrastructure Replacement'!$AE$74:$AK$109,4,FALSE) ->  | AX140: 122 | BB140: 0 | BF140: 0 | BL140: 0 | BP140: 0 | BR140: 0 | BT140: =IF(#REF!=0,AN140,IF(#REF!>0,AP140)) -> 
C141: Source | D141: =D19 -> <Type of Supply> | E141: 3.6 | F141: 689 | G141: 5.2 | H141: 770 | I141: =IF($D$57<0.00001,0,IF($D$47<500,ROUNDUP(F141+E141*$D$57,-2),ROUNDUP(H141+G141*$D$57,-2))) -> 0 | AS141: 0 | AT141: 143.1 | AU141: 0 | AV141: 0 | AW141: =VLOOKUP(AL141,'3.1) Infrastructure Replacement'!$AE$74:$AK$109,4,FALSE) ->  | AX141: 122 | BB141: 0 | BF141: 0 | BL141: 0 | BP141: 0 | BR141: 0 | BT141: =IF(#REF!=0,AN141,IF(#REF!>0,AP141)) -> 
C142: Distribution | D142: =D19 -> <Type of Supply> | E142: =(80*170+10000-1000)/170 -> 132.9411765 | F142: 1000 | G142: 80 | H142: 10000 | I142: =IF($D$57<0.00001,0,IF($D$47<500,ROUNDUP(F142+E142*$D$57,-2),ROUNDUP(H142+G142*$D$57,-2))) -> 0 | AS142: 0 | AT142: 144.1 | AU142: 0 | AV142: 0 | AW142: =VLOOKUP(AL142,'3.1) Infrastructure Replacement'!$AE$74:$AK$109,4,FALSE) ->  | AX142: 122 | BB142: 0 | BF142: 0 | BL142: 0 | BP142: 0 | BR142: 0 | BT142: =IF(#REF!=0,AN142,IF(#REF!>0,AP142)) -> 
C143: Administration | D143: =D19 -> <Type of Supply> | AS143: 0 | AT143: 145.1 | AU143: 0 | AV143: 0 | AW143: =VLOOKUP(AL143,'3.1) Infrastructure Replacement'!$AE$74:$AK$109,4,FALSE) ->  | AX143: 122 | BB143: 0 | BF143: 0 | BL143: 0 | BP143: 0 | BR143: 0 | BT143: =IF(#REF!=0,AN143,IF(#REF!>0,AP143)) -> 
F144: Total | I144: =SUM(I141:I143) -> 0 | AS144: 0 | AT144: 146.1 | AU144: 0 | AV144: 0 | AW144: =VLOOKUP(AL144,'3.1) Infrastructure Replacement'!$AE$74:$AK$109,4,FALSE) ->  | AX144: 122 | BB144: 0 | BF144: 0 | BL144: 0 | BP144: 0 | BR144: 0 | BT144: =IF(#REF!=0,AN144,IF(#REF!>0,AP144)) -> 
AQ145: 0 | AR145: 147.1 | AS145: 0 | AT145: 0 | AU145: =VLOOKUP(AJ145,'3.1) Infrastructure Replacement'!$AE$74:$AK$109,4,FALSE) ->  | AV145: 122 | AZ145: 0 | BD145: 0 | BJ145: 0 | BN145: 0 | BP145: 0 | BR145: =IF(#REF!=0,AL145,IF(#REF!>0,AN145)) -> 
C146: O&M Costs for Pumping: | AQ146: 0 | AR146: 148.1 | AS146: 0 | AT146: 0 | AU146: =VLOOKUP(AJ146,'3.1) Infrastructure Replacement'!$AE$74:$AK$109,4,FALSE) ->  | AV146: 122 | AZ146: 0 | BD146: 0 | BJ146: 0 | BN146: 0 | BP146: 0 | BR146: =IF(#REF!=0,AL146,IF(#REF!>0,AN146)) -> 
C147: Dist. Syst. Pumping Option # | D147: 1 | AQ147: 0 | AR147: 149.1 | AS147: 0 | AT147: 0 | AU147: =VLOOKUP(AJ147,'3.1) Infrastructure Replacement'!$AE$74:$AK$109,4,FALSE) ->  | AV147: 122 | AZ147: 0 | BD147: 0 | BJ147: 0 | BN147: 0 | BP147: 0 | BR147: =IF(#REF!=0,AL147,IF(#REF!>0,AN147)) -> 
AQ148: 0 | AR148: 150.1 | AS148: 0 | AT148: 0 | AU148: =VLOOKUP(AJ148,'3.1) Infrastructure Replacement'!$AE$74:$AK$109,4,FALSE) ->  | AV148: 122 | AZ148: 0 | BD148: 0 | BJ148: 0 | BN148: 0 | BP148: 0 | BR148: =IF(#REF!=0,AL148,IF(#REF!>0,AN148)) -> 
AQ149: 0 | AR149: 151.1 | AS149: 0 | AT149: 0 | AU149: =VLOOKUP(AJ149,'3.1) Infrastructure Replacement'!$AE$74:$AK$109,4,FALSE) ->  | AV149: 122 | AZ149: 0 | BD149: 0 | BJ149: 0 | BN149: 0 | BP149: 0 | BR149: =IF(#REF!=0,AL149,IF(#REF!>0,AN149)) -> 
C150: Fraction dist. syst. served by booster pumps | D150: =VLOOKUP(D147,E124:F134,2,FALSE) -> 0 | AQ150: 0 | AR150: 152.1 | AS150: 0 | AT150: 0 | AU150: =VLOOKUP(AJ150,'3.1) Infrastructure Replacement'!$AE$74:$AK$109,4,FALSE) ->  | AV150: 122 | AZ150: 0 | BD150: 0 | BJ150: 0 | BN150: 0 | BP150: 0 | BR150: =IF(#REF!=0,AL150,IF(#REF!>0,AN150)) -> 
F151: Power Costs | O151: Labour Costs | R151: Miscellaneou Replacements | AQ151: 0 | AR151: 153.1 | AS151: 0 | AT151: 0 | AU151: =VLOOKUP(AJ151,'3.1) Infrastructure Replacement'!$AE$74:$AK$109,4,FALSE) ->  | AV151: 122 | AZ151: 0 | BD151: 0 | BJ151: 0 | BN151: 0 | BP151: 0 | BR151: =IF(#REF!=0,AL151,IF(#REF!>0,AN151)) -> 
C152: Item | D152: Option Button Value | E152: Flow (m3/d) | F152: Fixed Costs | G152: Fixed Costs Applied (yes/no) | H152: Power Rate per Pump (kW/m3/d) | I152: Pump Power (kW) | J152: Demand Rate | K152: Consumption Rate ($/kWh) | L152: Demand Cost | M152: Consumption Cost | N152: Total Power Cost | O152: Slope | P152: Intercept | Q152: Costs | R152: Slope | S152: Intercept | T152: Costs | AQ152: 0 | AR152: 154.1 | AS152: 0 | AT152: 0 | AU152: =VLOOKUP(AJ152,'3.1) Infrastructure Replacement'!$AE$74:$AK$109,4,FALSE) ->  | AV152: 122 | AZ152: 0 | BD152: 0 | BJ152: 0 | BN152: 0 | BP152: 0 | BR152: =IF(#REF!=0,AL152,IF(#REF!>0,AN152)) -> 
C153: Ground water pumping | D153: FALSE | E153: =D153*$D$57 -> 0 | G153: =F153*D153 -> 0 | H153: 0.015444 | I153: =H153*E153 -> 0 | J153: 7.63 | K153: 0.09 | L153: =J153*I153*12 -> 0 | M153: =I153*24*365*K153 -> 0 | N153: =L153+M153+G153 -> 0 | O153: 0.8292957746 | P153: 643.1549296 | Q153: =IF(E153=0,0,P153+O153*E153) -> 0 | R153: 0.463 | S153: 359 | T153: =IF(E153=0,0,S153+R153*E153) -> 0 | AQ153: 0 | AR153: 155.1 | AS153: 0 | AT153: 0 | AU153: =VLOOKUP(AJ153,'3.1) Infrastructure Replacement'!$AE$74:$AK$109,4,FALSE) ->  | AV153: 122 | AZ153: 0 | BD153: 0 | BJ153: 0 | BN153: 0 | BP153: 0 | BR153: =IF(#REF!=0,AL153,IF(#REF!>0,AN153)) -> 
C154: Low Lift Pumping | D154: FALSE | E154: =D154*$D$57 -> 0 | G154: =F154*D154 -> 0 | H154: 0.0045045 | I154: =H154*E154 -> 0 | J154: 7.63 | K154: 0.09 | L154: =J154*I154*12 -> 0 | M154: =I154*24*365*K154 -> 0 | N154: =L154+M154+G154 -> 0 | O154: 0.8292957746 | P154: 643.1549296 | Q154: =IF(E154=0,0,P154+O154*E154) -> 0 | R154: 0.463 | S154: 359 | T154: =IF(E154=0,0,S154+R154*E154) -> 0 | AQ154: 0 | AR154: 156.1 | AS154: 0 | AT154: 0 | AU154: =VLOOKUP(AJ154,'3.1) Infrastructure Replacement'!$AE$74:$AK$109,4,FALSE) ->  | AV154: 122 | AZ154: 0 | BD154: 0 | BJ154: 0 | BN154: 0 | BP154: 0 | BR154: =IF(#REF!=0,AL154,IF(#REF!>0,AN154)) -> 
C155: High Lift Pumping | D155: FALSE | E155: =D155*$D$57 -> 0 | G155: =F155*D155 -> 0 | H155: 0.01223 | I155: =H155*E155 -> 0 | J155: 7.63 | K155: 0.09 | L155: =J155*I155*12 -> 0 | M155: =I155*24*365*K155 -> 0 | N155: =L155+M155+G155 -> 0 | O155: 0.8292957746 | P155: 643.1549296 | Q155: =IF(E155=0,0,P155+O155*E155) -> 0 | R155: 0.463 | S155: 359 | T155: =IF(E155=0,0,S155+R155*E155) -> 0 | AQ155: 0 | AS155: 0 | AT155: 0 | AU155: =VLOOKUP(AJ155,'3.1) Infrastructure Replacement'!$AE$74:$AK$109,4,FALSE) ->  | AV155: 122 | AZ155: 0 | BD155: 0 | BJ155: 0 | BN155: 0 | BP155: 0 | BR155: =IF(#REF!=0,AL155,IF(#REF!>0,AN155)) -> 
C156: Distribution System Pumping | D156: FALSE | E156: =IF(D150="<Percentage>",0,D156*$D$57*$D$150) -> 0 | F156: 993 | G156: =F156*D156 -> 0 | H156: 0.009009 | I156: =H156*E156 -> 0 | J156: 7.63 | K156: 0.09 | L156: =J156*I156*12 -> 0 | M156: =I156*24*365*K156 -> 0 | N156: =L156+M156+G156 -> 0 | O156: 0.8292957746 | P156: 643.1549296 | Q156: =IF(E156=0,0,P156+O156*E156) -> 0 | R156: 0.463 | S156: 359 | T156: =IF(E156=0,0,S156+R156*E156) -> 0 | AQ156: 0 | AS156: 0 | AT156: 0 | AU156: =VLOOKUP(AJ156,'3.1) Infrastructure Replacement'!$AE$74:$AK$109,4,FALSE) ->  | AV156: 122 | AZ156: 0 | BD156: 0 | BJ156: 0 | BN156: 0 | BP156: 0 | BR156: =IF(#REF!=0,AL156,IF(#REF!>0,AN156)) -> 
C157: ="Total Pumping Cost ("&$D$22&"$)" -> Total Pumping Cost (2017$) | D157: =ROUND(SUM(N153:N156,Q153:Q156,T153:T156),-2) -> 0 | AQ157: 0 | AS157: 0 | AT157: 0 | AU157: =VLOOKUP(AJ157,'3.1) Infrastructure Replacement'!$AE$74:$AK$109,4,FALSE) ->  | AV157: 122 | AZ157: 0 | BD157: 0 | BJ157: 0 | BN157: 0 | BP157: 0 | BR157: =IF(#REF!=0,AL157,IF(#REF!>0,AN157)) -> 
AQ158: 0 | AS158: 0 | AT158: 0 | AU158: =VLOOKUP(AJ158,'3.1) Infrastructure Replacement'!$AE$74:$AK$109,4,FALSE) ->  | AV158: 122 | AZ158: 0 | BD158: 0 | BJ158: 0 | BN158: 0 | BP158: 0 | BR158: =IF(#REF!=0,AL158,IF(#REF!>0,AN158)) -> 
C159: Summary of Theoretical Existing O&M Costs with Additional Location and Inflation Factors Included | AQ159: 0 | AS159: 0 | AT159: 0 | AU159: =VLOOKUP(AJ159,'3.1) Infrastructure Replacement'!$AE$74:$AK$109,4,FALSE) ->  | AV159: 122 | AZ159: 0 | BD159: 0 | BJ159: 0 | BN159: 0 | BP159: 0 | BR159: =IF(#REF!=0,AL159,IF(#REF!>0,AN159)) -> 
C160: Item | D160: Base Year (2017) Theoretical Costs | E160: ="Inflated Theoretical Costs ("&C17&"$)" -> Inflated Theoretical Costs (Year:$) | F160: ="Inflated Theoretical Costs for ("&D40&")" -> Inflated Theoretical Costs for (0) | AR160: 0 | AT160: 0 | AU160: 0 | AV160: =VLOOKUP(AK160,'3.1) Infrastructure Replacement'!$AE$74:$AK$109,4,FALSE) ->  | AW160: 122 | BA160: 0 | BE160: 0 | BK160: 0 | BO160: 0 | BQ160: 0 | BS160: =IF(#REF!=0,AM160,IF(#REF!>0,AO160)) -> 
C161: Source | D161: =ROUND(I141,0) -> 0 | E161: =$D$161*$D$23 -> 0 | F161: =ROUND(D161*$D$23*$D$42,-2) -> 0 | R161: 0.46277666 | S161: 358.9034205 | AR161: 0 | AT161: 0 | AU161: 0 | AV161: =VLOOKUP(AK161,'3.1) Infrastructure Replacement'!$AE$74:$AK$109,4,FALSE) ->  | AW161: 122 | BA161: 0 | BE161: 0 | BK161: 0 | BO161: 0 | BQ161: 0 | BS161: =IF(#REF!=0,AM161,IF(#REF!>0,AO161)) -> 
C162: Pumping | D162: =ROUND(D157,0) -> 0 | E162: =$D$162*$D$23 -> 0 | F162: =ROUND(D162*$D$23*$D$42,-2) -> 0 | R162: 0.46277666 | S162: 358.9034205 | AR162: 0 | AT162: 0 | AU162: 0 | AV162: =VLOOKUP(AK162,'3.1) Infrastructure Replacement'!$AE$74:$AK$109,4,FALSE) ->  | AW162: 122 | BA162: 0 | BE162: 0 | BK162: 0 | BO162: 0 | BQ162: 0 | BS162: =IF(#REF!=0,AM162,IF(#REF!>0,AO162)) -> 
C163: Treatment | D163: =ROUND(J121,0) -> 0 | E163: =$D$163*$D$23 -> 0 | F163: =ROUND(D163*$D$23*$D$42,-3) -> 0 | AR163: 0 | AT163: 0 | AU163: 0 | AV163: =VLOOKUP(AK163,'3.1) Infrastructure Replacement'!$AE$74:$AK$109,4,FALSE) ->  | AW163: 122 | BA163: 0 | BE163: 0 | BK163: 0 | BO163: 0 | BQ163: 0 | BS163: =IF(#REF!=0,AM163,IF(#REF!>0,AO163)) -> 
C164: Transmission & Distribution | D164: =ROUND(I142,0) -> 0 | E164: =$D$164*$D$23 -> 0 | F164: =ROUND(D164*$D$23*$D$42,-3) -> 0 | AR164: 0 | AT164: 0 | AU164: 0 | AV164: =VLOOKUP(AK164,'3.1) Infrastructure Replacement'!$AE$74:$AK$109,4,FALSE) ->  | AW164: 122 | BA164: 0 | BE164: 0 | BK164: 0 | BO164: 0 | BQ164: 0 | BS164: =IF(#REF!=0,AM164,IF(#REF!>0,AO164)) -> 
C165: Administration | D165: =ROUND(SUM(D161:D164)*0.1,0) -> 0 | E165: =$D$165*$D$23 -> 0 | F165: =ROUND(D165*$D$23*$D$42,-2) -> 0 | AR165: 0 | AT165: 0 | AU165: 0 | AV165: =VLOOKUP(AK165,'3.1) Infrastructure Replacement'!$AE$74:$AK$109,4,FALSE) ->  | AW165: 122 | BA165: 0 | BE165: 0 | BK165: 0 | BO165: 0 | BQ165: 0 | BS165: =IF(#REF!=0,AM165,IF(#REF!>0,AO165)) -> 
C166: Total | D166: =SUM(D161:D165) -> 0 | E166: =SUM(E161:E165) -> 0 | F166: =SUM(F161:F165) -> 0 | AR166: 0 | AT166: 0 | AU166: 0 | AV166: =VLOOKUP(AK166,'3.1) Infrastructure Replacement'!$AE$74:$AK$109,4,FALSE) ->  | AW166: 122 | BA166: 0 | BE166: 0 | BK166: 0 | BO166: 0 | BQ166: 0 | BS166: =IF(#REF!=0,AM166,IF(#REF!>0,AO166)) -> 
C167: Annual Cost per Population | D167: =D166/$D$47 ->  | E167: =E166/$D$47 ->  | AQ167: 0 | AS167: 0 | AT167: 0 | AU167: =VLOOKUP(AJ167,'3.1) Infrastructure Replacement'!$AE$74:$AK$109,4,FALSE) ->  | AV167: 122 | AZ167: 0 | BD167: 0 | BJ167: 0 | BN167: 0 | BP167: 0 | BR167: =IF(#REF!=0,AL167,IF(#REF!>0,AN167)) -> 
C168: Monthly Cost per Person | D168: =D167/12 ->  | E168: =E167/12 ->  | AQ168: 0 | AS168: 0 | AT168: 0 | AU168: =VLOOKUP(AJ168,'3.1) Infrastructure Replacement'!$AE$74:$AK$109,4,FALSE) ->  | AV168: 122 | AZ168: 0 | BD168: 0 | BJ168: 0 | BN168: 0 | BP168: 0 | BR168: =IF(#REF!=0,AL168,IF(#REF!>0,AN168)) -> 
AQ169: 0 | AS169: 0 | AT169: 0 | AU169: =VLOOKUP(AJ169,'3.1) Infrastructure Replacement'!$AE$74:$AK$109,4,FALSE) ->  | AV169: 122 | AZ169: 0 | BD169: 0 | BJ169: 0 | BN169: 0 | BP169: 0 | BR169: =IF(#REF!=0,AL169,IF(#REF!>0,AN169)) -> 
AQ170: 0 | AS170: 0 | AT170: 0 | AU170: =VLOOKUP(AJ170,'3.1) Infrastructure Replacement'!$AE$74:$AK$109,4,FALSE) ->  | AV170: 122 | AZ170: 0 | BD170: 0 | BJ170: 0 | BN170: 0 | BP170: 0 | BR170: =IF(#REF!=0,AL170,IF(#REF!>0,AN170)) -> 
AQ171: 0 | AS171: 0 | AT171: 0 | AU171: =VLOOKUP(AJ171,'3.1) Infrastructure Replacement'!$AE$74:$AK$109,4,FALSE) ->  | AV171: 122 | AZ171: 0 | BD171: 0 | BJ171: 0 | BN171: 0 | BP171: 0 | BR171: =IF(#REF!=0,AL171,IF(#REF!>0,AN171)) -> 
AQ172: 0 | AS172: 0 | AT172: 0 | AU172: =VLOOKUP(AJ172,'3.1) Infrastructure Replacement'!$AE$74:$AK$109,4,FALSE) ->  | AV172: 122 | AZ172: 0 | BD172: 0 | BJ172: 0 | BN172: 0 | BP172: 0 | BR172: =IF(#REF!=0,AL172,IF(#REF!>0,AN172)) -> 
C173: PAGE 3 - Existing Expenditures | AQ173: 0 | AS173: 0 | AT173: 0 | AU173: =VLOOKUP(AJ173,'3.1) Infrastructure Replacement'!$AE$74:$AK$109,4,FALSE) ->  | AV173: 122 | AZ173: 0 | BD173: 0 | BJ173: 0 | BN173: 0 | BP173: 0 | BR173: =IF(#REF!=0,AL173,IF(#REF!>0,AN173)) -> 
AQ174: 0 | AS174: 0 | AT174: 0 | AU174: =VLOOKUP(AJ174,'3.1) Infrastructure Replacement'!$AE$74:$AK$109,4,FALSE) ->  | AV174: 122 | AZ174: 0 | BD174: 0 | BJ174: 0 | BN174: 0 | BP174: 0 | BR174: =IF(#REF!=0,AL174,IF(#REF!>0,AN174)) -> 
C175: ACTUAL O&M COSTS | AQ175: 0 | AS175: 0 | AT175: 0 | AU175: =VLOOKUP(AJ175,'3.1) Infrastructure Replacement'!$AE$74:$AK$109,4,FALSE) ->  | AV175: 122 | AZ175: 0 | BD175: 0 | BJ175: 0 | BN175: 0 | BP175: 0 | BR175: =IF(#REF!=0,AL175,IF(#REF!>0,AN175)) -> 
C176: Previous Year Actual Expenditures: | D176: =IF(D17>2016,D17-1,"") ->  | AQ176: 0 | AS176: 0 | AT176: 0 | AU176: =VLOOKUP(AJ176,'3.1) Infrastructure Replacement'!$AE$74:$AK$109,4,FALSE) ->  | AV176: 122 | AZ176: 0 | BD176: 0 | BJ176: 0 | BN176: 0 | BP176: 0 | BR176: =IF(#REF!=0,AL176,IF(#REF!>0,AN176)) -> 
AQ177: 0 | AS177: 0 | AT177: 0 | AU177: =VLOOKUP(AJ177,'3.1) Infrastructure Replacement'!$AE$74:$AK$109,4,FALSE) ->  | AV177: 122 | AZ177: 0 | BD177: 0 | BJ177: 0 | BN177: 0 | BP177: 0 | BR177: =IF(#REF!=0,AL177,IF(#REF!>0,AN177)) -> 
AQ178: 0 | AS178: 0 | AT178: 0 | AU178: =VLOOKUP(AJ178,'3.1) Infrastructure Replacement'!$AE$74:$AK$109,4,FALSE) ->  | AV178: 122 | AZ178: 0 | BD178: 0 | BJ178: 0 | BN178: 0 | BP178: 0 | BR178: =IF(#REF!=0,AL178,IF(#REF!>0,AN178)) -> 
C179: Item | AQ179: 0 | AS179: 0 | AT179: 0 | AU179: =VLOOKUP(AJ179,'3.1) Infrastructure Replacement'!$AE$74:$AK$109,4,FALSE) ->  | AV179: 122 | AZ179: 0 | BD179: 0 | BJ179: 0 | BN179: 0 | BP179: 0 | BR179: =IF(#REF!=0,AL179,IF(#REF!>0,AN179)) -> 
C180: Source of Supply | D180: ='1.3) Existing Expenditures'!Q8 -> 0 | AQ180: 0 | AS180: 0 | AT180: 0 | AU180: =VLOOKUP(AJ180,'3.1) Infrastructure Replacement'!$AE$74:$AK$109,4,FALSE) ->  | AV180: 122 | AZ180: 0 | BD180: 0 | BJ180: 0 | BN180: 0 | BP180: 0 | BR180: =IF(#REF!=0,AL180,IF(#REF!>0,AN180)) -> 
C181: Pumping | D181: ='1.3) Existing Expenditures'!Q9 -> 0
C182: Water Treatment | D182: ='1.3) Existing Expenditures'!Q10 -> 0 | BC182: Total Annual Cost: | BF182: =SUMIF(BF3:BF180,"<>#N/A") ->  | BG182: =SUMIF(BG3:BG180,"<>#N/A") -> 
C183: Transmission & Distribution | D183: ='1.3) Existing Expenditures'!Q11 -> 0
C184: Administration | D184: ='1.3) Existing Expenditures'!Q12 -> 0
C185: Total | D185: =SUM(D180:D184) -> 0
C191: PAGE 4 - Existing Revenue
C193: Water Tax Revenue:
C194: Enter the number of customers that pay Water Taxes: | E194: ='1.4) Existing Revenue'!Q7 -> 0
C195: If known, enter the number of people per household: | E195: 2.3
C196: Population: | E196: =D47 -> 0
C197: Number of customers: | E197: =IF(E194=0,E196/E195,E194) -> 0
C198: Water Tax: | E198: ='1.4) Existing Revenue'!Q8 -> 0
C200: Water & Sewer Tax Revenue:
C201: Enter the number of customers that pay Water & Sewer Tax: | E201: ='1.4) Existing Revenue'!Q12 -> 0
C202: Enter the annual Water & Sewer Tax rate charged to each customer: | E202: ='1.4) Existing Revenue'!Q13 -> 0
C203: %age applied to Sewer | E203: ='1.4) Existing Revenue'!Q14 -> 0
C204: Percentage applied to water services | E204: =E202*(1-E203) -> 0
C206: Other Revenue:
C207: Number of Industrial Customers: | E207: ='1.4) Existing Revenue'!Q19 -> 0
C208: Industrial Rate: | E208: ='1.4) Existing Revenue'!Q20 -> 0
C209: Other Revenue: | E209: ='1.4) Existing Revenue'!Q22 -> 0
... 548 more rows

Sheet Table Inputs (hidden)
M2: Watermain Pipe (based on Ductile Iron)
B3: Population | D3: MDF | E3: PDF | G3: Existing or New? | I3: Peak Hour Flow (m3/d) | J3: Pipe Size (inches) | K3: Recommended Nominal Pipe (inches) | M3: Pipe Diameter (inch) | N3: Pipe & Installation Cost ($/m) | O3: Excavation Volume (m3/m) | P3: Volume Rock Excavated (/m) | Q3: Rock Allowance ($80/m3/m) | R3: Total Installation Cost ($/m) | T3: Given Unit | U3: Conversion Factor
B4: 0 | C4: 1000 | D4: 2.75 | E4: 4.13 | G4: <Building?> | I4: 0 | J4: 0 | K4: 4 | M4: 2 | N4: 100 | O4: =(M4*25.4/1000+0.7)*2+0.8^2 -> 2.1416 | P4: =O4*0.3 -> 0.64248 | Q4: =P4*80 -> 51.3984 | R4: =N4+Q4 -> 151.3984 | T4: m3/d | U4: 1 | V4: m3/d
B5: =C4+1 -> 1001 | C5: 2000 | D5: 2.5 | E5: 3.75 | G5: New | I5: 4.13 | J5: 0 | K5: 4 | M5: 4 | N5: 150 | O5: =(M5*25.4/1000+0.7)*2+0.8^2 -> 2.2432 | P5: =O5*0.3 -> 0.67296 | Q5: =P5*80 -> 53.8368 | R5: =N5+Q5 -> 203.8368 | T5: usgpm | U5: =3.785/1000*1440 -> 5.4504 | V5: m3/d
B6: 2001 | C6: 3000 | D6: 2.25 | E6: 3.38 | G6: Existing | I6: 854.91 | J6: 4 | K6: 4 | M6: 6 | N6: 200 | O6: 2.3448 | P6: 0.70344 | Q6: 56.2752 | R6: 256.2752 | T6: igpm | U6: =4.55/1000*1440 -> 6.552 | V6: m3/d
B7: 3001 | C7: 10000 | D7: 2 | E7: 3 | I7: 859.04 | J7: 5 | K7: 6 | M7: 8 | N7: 275 | O7: 2.4464 | P7: 0.73392 | Q7: 58.7136 | R7: 333.7136
B8: 10001 | C8: 25000 | D8: 1.9 | E8: 2.85 | G8: <Fire Storage> | I8: 1404.2 | J8: 6 | K8: 6 | M8: 10 | N8: 300 | O8: 2.548 | P8: 0.7644 | Q8: 61.152 | R8: 361.152
B9: 25001 | C9: 50000 | D9: 1.8 | E9: 2.7 | G9: 30 | I9: 1788.75 | J9: 6 | K9: 6 | M9: 12 | N9: 325 | O9: 2.6496 | P9: 0.79488 | Q9: 63.5904 | R9: 388.5904
B10: 50001 | C10: 75000 | D10: 1.75 | E10: 2.62 | G10: 60 | I10: 1792.5 | J10: 7 | K10: 8 | M10: 14 | N10: 400 | O10: 2.7512 | P10: 0.82536 | Q10: 66.0288 | R10: 466.0288
B11: 75001 | C11: 150000 | D11: 1.65 | E11: 2.42 | G11: 90 | I11: 2550 | J11: 8 | K11: 8 | M11: 16 | N11: 450 | O11: 2.8528 | P11: 0.85584 | Q11: 68.4672 | R11: 518.4672
B12: 150001 | D12: 1.5 | E12: 2.25 | G12: 120 | I12: 3062.28 | J12: 8 | K12: 8 | M12: Assume 2 m deep, 30% excavation is rock
G13: 150 | I13: 3065.66 | J13: 9 | K13: 10 | M13: Total Excavation volume per m
G14: 180 | I14: 3447.6 | J14: 9 | K14: 10
B15: <Units> | D15: <Design Life> | I15: 4674 | J15: 10 | K15: 10
B16: usgpm | D16: 20 | I16: 4676.85 | J16: 11 | K16: 12 | M16: Wastewater Pipe (assume gravity flow)
B17: igpm | D17: 25 | G17: <Fire flow> | I17: 6626.25 | J17: 12 | K17: 12 | M17: Pipe Diameter (inch) | N17: Pipe & Installation | O17: Excavation Volume (m3/m) | P17: Volume Rock Excavated (/m) | Q17: Rock Allowance ($80/m3/m) | R17: Total Installation Cost ($/m)
B18: m3/d | D18: 30 | G18: 250 | I18: 6629.1 | J18: 13 | K18: 14 | M18: 8 | N18: 150 | O18: =(M18*25.4/1000+0.7)*2+0.8^2 -> 2.4464 | P18: =O18*0.3 -> 0.73392 | Q18: =P18*80 -> 58.7136 | R18: =N18+Q18 -> 208.7136
G19: 500 | I19: 8914.8 | J19: 14 | K19: 14 | M19: Assume 2 m deep, 30% excavation is rock
G20: 750 | I20: 8917.65 | J20: 15 | K20: 16 | M20: Total Excavation volume per m
B21: <Yes/No> | D21: <Geographic Region> | G21: 1000 | I21: 11970 | J21: 17 | K21: 18
B22: No | D22: St. John's/Avalon | G22: 1250
B23: Yes | D23: Eastern | G23: 1500 | M23: Disinfection System Type | N23: Chemical Used | O23: Quantity Units
D24: Central | G24: 1750 | M24: Sodium Hypochlorite | N24: Sodium Hypochlorite | O24: L/year
D25: Western | G25: 2000 | M25: Gas Chlorination | N25: Chlorine Gas | O25: kg/year
D26: Labrador | M26: Onsite Hypo Generation | N26: Salt | O26: kg/year
K27: Chemicals
G28: pH adjustment Chemicals | K28: <pH Chemical>
D29: <Type of Supply> | K29: Soda Ash
D30: Surface Water | G30: Soda Ash | K30: Sodium Hydroxide
D31: Groundwater | G31: Sodium Hydroxide | K31: Lime
G32: Lime
D33: <Gravity or Pumped> | G33: Carbon Dioxide
D34: Gravity | G34: Sulfuric Acid
D35: Pumped | G35: Hydrochloric Acid
K36: Treatment Chemicals
D37: <Loan Interest Rate> | K37: <Other Chemicals>
D38: 0.015 | G38: Disinfection System Type | I38: Disinfection System Upgrade | K38: Polymer
D39: 0.02 | G39: <Disinfection System Type> | I39: <Existing/New?> | K39: Potassium Permanganate
D40: 0.025 | G40: Sodium Hypochlorite | I40: Existing
D41: 0.03 | G41: Gas Chlorination | I41: New
D42: 0.035 | G42: Onsite Hypo Generation
D43: 0.04
D44: 0.045 | G44: Treatment Processes
D45: 0.05 | G45: <Treatment Processes>
D46: 0.055 | G46: pH Adjustment System
D47: 0.06 | G47: Pressure Filtration System
D48: 0.065 | G48: Membrane Filtration | K48: Other Chemicals
B49: With VFD? | G49: As Removal | K49: <Other Chemicals>
B50: Yes | G50: Fe and/or Mn Removal | K50: Citric Acid
B51: No | G51: Conventional WTP | K51: Corrosion Inhibitor
G52: PWDU
B54: Dates | G54: <USER GENERATED OR ESTIMATED BASED ON POPULATION>
B55: Month | C55: Day | D55: <Year> | G55: User Generated
B56: January | C56: 1 | D56: 2017 | G56: Using Population Estimate
B57: February | C57: 2 | D57: 2018
B58: March | C58: 3 | D58: 2019 | G58: <USER GENERATED OR PEAKING FACTOR>
B59: April | C59: 4 | D59: 2020 | G59: User Generated
B60: May | C60: 5 | D60: 2021 | G60: Using Peaking Factor
B61: June | C61: 6 | D61: 2022
B62: July | C62: 7 | D62: 2023
B63: August | C63: 8 | D63: 2024 | G63: Current Date | H63: Census Year | K63: <Equipment>
B64: September | C64: 9 | D64: 2025 | G64: 2017 | H64: 2016 | K64: New
B65: October | C65: 10 | D65: 2026 | G65: =G64+5 -> 2022 | H65: =H64+5 -> 2021 | K65: Existing
B66: November | C66: 11 | D66: 2027 | G66: 2027 | H66: 2026
B67: December | C67: 12 | D67: 2028 | G67: 2032 | H67: 2031
C68: 13 | D68: 2029 | G68: 2037 | H68: 2036 | K68: <Funding>
C69: 14 | D69: 2030 | G69: 2042 | H69: 2041 | K69: 0
C70: 15 | D70: 2031 | G70: 2047 | H70: 2046 | K70: 0.1
C71: 16 | D71: 2032 | G71: 2052 | H71: 2051 | K71: 0.2
C72: 17 | D72: 2033 | G72: 2057 | H72: 2056 | K72: 0.3
C73: 18 | D73: 2034 | G73: 2062 | H73: 2061 | K73: 0.4
C74: 19 | D74: 2035 | G74: 2067 | H74: 2066 | K74: 0.5
C75: 20 | D75: 2036 | G75: 2072 | H75: 2071 | K75: 0.6
C76: 21 | D76: 2037 | G76: 2077 | H76: 2076 | K76: 0.7
C77: 22 | D77: 2038 | G77: 2082 | H77: 2081 | K77: 0.8
C78: 23 | D78: 2039 | G78: =G77+5 -> 2087 | H78: =H77+5 -> 2086 | K78: 0.9
C79: 24 | D79: 2040 | G79: 2092 | H79: 2091 | K79: 1
C80: 25 | G80: 2097 | H80: 2096
C81: 26 | G81: 2102 | H81: 2101
C82: 27 | G82: 2107 | H82: 2106
C83: 28 | G83: 2112 | H83: 2111
C84: 29
C85: 30
C86: 31 | G86: <Percentage> | H86: Booster Pump Sets
G87: 0 | H87: 0
G88: 0.1 | H88: 1
G89: 0.2 | H89: 2
B90: Primary Seasonal Flows | G90: 0.3 | H90: 3
B91: Flows do not fluctuate seasonally | G91: 0.4
B92: 6 | G92: 0.5
B93: 7 | G93: 0.6
B94: 8 | G94: 0.7
B95: 9 | G95: 0.8
B96: 10 | G96: 0.9
B97: 11 | G97: 1
B98: 12
B100: Secondary Seasonal Flows
B101: Flows do not fluctuate seasonally
B102: 1
B103: 2
B104: 3
B105: 4
B106: 5
